{"text_format":"1","workbook":"xlsx","n_sheets":8,"sheets":["LETRA","SERV","REG","CTRL","REC","REM","CSF","regCTES"],"not_rendered":{"charts":0,"images":5,"macros":1,"external_links":0,"defined_names":5,"comments":1,"pivot_tables":0},"unopened":[],"bounds":{"document_bytes":16777216,"sheet_cells":100000,"rows_first":2000,"rows_last":500,"rows_between":2000,"halvings":0,"cell_chars":16384,"cell_head_chars":4096},"cells_cut":0,"cells_raw":0,"read":"whole","date_system":"1900"}

{"sheet":"LETRA","index":0,"n_rows":146,"n_cols":41,"rows_kept":146,"cut":false,"hidden":true,"merged":[]}
[null,null,null,null,null,null,null,{"$f":"CONCATENATE(D106,H2)","v":"DOSCIENTOS VEINTIUN MILLONES DOSCIENTOS VEINTIUN MIL SETECIENTOS ONCE PESOS 70/100 M.N."},null,null,null,null,null,null,null,null,null,{"$f":"CONCATENATE(N106,R2)","v":"SEISCIENTOS SESENTA MILLONES SEISCIENTOS SEIS MIL  PESOS 00/100 M.N."},null,null,null,null,null,null,null,null,null,{"$f":"CONCATENATE(X106,AB2)","v":"QUINIENTOS CINCUENTA Y CINCO MILLONES QUINIENTOS CINCUENTA Y CINCO MIL CIENTO TREINTA Y CINCO PESOS 11/100 M.N."},null,null,null,null,null,null,null,null,null,null,null,{"$f":"CONCATENATE(AJ106,AN2)","v":"OCHOCIENTOS OCHENTA MILLONES OCHOCIENTOS OCHENTA MIL  PESOS 00/100 M.N."}]
[null,null,null,null,null,null,null,{"$f":"CONCATENATE(E92,\" MILLON\",E93,H3)","v":"VEINTIUN MILLONES DOSCIENTOS VEINTIUN MIL SETECIENTOS ONCE PESOS 70/100 M.N."},null,null,null,null,null,null,null,null,null,{"$f":"CONCATENATE(O92,\" MILLON\",O93,R3)","v":"SESENTA MILLONES SEISCIENTOS SEIS MIL  PESOS 00/100 M.N."},null,null,null,null,null,null,null,null,null,{"$f":"CONCATENATE(Y92,\" MILLON\",Y93,AB3)","v":"CINCUENTA Y CINCO MILLONES QUINIENTOS CINCUENTA Y CINCO MIL CIENTO TREINTA Y CINCO PESOS 11/100 M.N."},null,null,null,null,null,null,null,null,null,null,null,{"$f":"CONCATENATE(AK92,\" MILLON\",AK93,AN3)","v":"OCHENTA MILLONES OCHOCIENTOS OCHENTA MIL  PESOS 00/100 M.N."}]
[null,{"$f":"IF(B10<=99,H6,IF(B10<=999,H5,IF(B10<=99999,H4,IF(B10<=999999,H3,IF(B10<=99999999,H2,H1)))))","v":"VEINTIUN MIL SETECIENTOS ONCE PESOS 70/100 M.N."},null,null,null,null,null,{"$f":"CONCATENATE(D71,H4)","v":"DOSCIENTOS VEINTIUN MIL SETECIENTOS ONCE PESOS 70/100 M.N."},null,null,null,{"$f":"IF(L10<=99,R6,IF(L10<=999,R5,IF(L10<=99999,R4,IF(L10<=999999,R3,IF(L10<=99999999,R2,R1)))))","v":"SEIS MIL  PESOS 00/100 M.N."},null,null,null,null,null,{"$f":"CONCATENATE(N71,R4)","v":"SEISCIENTOS SEIS MIL  PESOS 00/100 M.N."},null,null,null,{"$f":"IF(V10<=99,AB6,IF(V10<=999,AB5,IF(V10<=99999,AB4,IF(V10<=999999,AB3,IF(V10<=99999999,AB2,AB1)))))","v":"CINCUENTA Y CINCO MIL CIENTO TREINTA Y CINCO PESOS 11/100 M.N."},null,null,null,null,null,{"$f":"CONCATENATE(X71,AB4)","v":"QUINIENTOS CINCUENTA Y CINCO MIL CIENTO TREINTA Y CINCO PESOS 11/100 M.N."},null,null,null,null,null,{"$f":"IF(AH10<=99,AN6,IF(AH10<=999,AN5,IF(AH10<=99999,AN4,IF(AH10<=999999,AN3,IF(AH10<=99999999,AN2,AN1)))))","v":"OCHENTA MIL  PESOS 00/100 M.N."},null,null,null,null,null,{"$f":"CONCATENATE(AJ71,AN4)","v":"OCHOCIENTOS OCHENTA MIL  PESOS 00/100 M.N."}]
[null,null,null,null,null,null,null,{"$f":"CONCATENATE(E57,H8,H5)","v":"VEINTIUN MIL SETECIENTOS ONCE PESOS 70/100 M.N."},null,null,null,null,null,null,null,null,null,{"$f":"CONCATENATE(O57,R8,R5)","v":"SEIS MIL  PESOS 00/100 M.N."},null,null,null,null,null,null,null,null,null,{"$f":"CONCATENATE(Y57,AB8,AB5)","v":"CINCUENTA Y CINCO MIL CIENTO TREINTA Y CINCO PESOS 11/100 M.N."},null,null,null,null,null,null,null,null,null,null,null,{"$f":"CONCATENATE(AK57,AN8,AN5)","v":"OCHENTA MIL  PESOS 00/100 M.N."}]
[null,null,null,null,null,null,null,{"$f":"CONCATENATE(D37,H6)","v":"SETECIENTOS ONCE PESOS 70/100 M.N."},null,null,null,null,null,null,null,null,null,{"$f":"CONCATENATE(N37,R6)","v":" PESOS 00/100 M.N."},null,null,null,null,null,null,null,null,null,{"$f":"CONCATENATE(X37,AB6)","v":"CIENTO TREINTA Y CINCO PESOS 11/100 M.N."},null,null,null,null,null,null,null,null,null,null,null,{"$f":"CONCATENATE(AJ37,AN6)","v":" PESOS 00/100 M.N."}]
[null,null,null,null,null,null,null,{"$f":"CONCATENATE(E17,H7,I7)","v":"ONCE PESOS 70/100 M.N."},null,null,null,null,null,null,null,null,null,{"$f":"CONCATENATE(O17,R7,S7)","v":" PESOS 00/100 M.N."},null,null,null,null,null,null,null,null,null,{"$f":"CONCATENATE(Y17,AB7,AC7)","v":"TREINTA Y CINCO PESOS 11/100 M.N."},null,null,null,null,null,null,null,null,null,null,null,{"$f":"CONCATENATE(AK17,AN7,AO7)","v":" PESOS 00/100 M.N."}]
[null,null,null,null,null,null,null,{"$f":"IF(B10<=1,\" PESO \",\" PESOS \")","v":" PESOS "},{"$f":"CONCATENATE(RIGHT(C9,2),\"/100 M.N.\")","v":"70/100 M.N."},null,null,null,null,null,null,null,null,{"$f":"IF(L10<=1,\" PESO \",\" PESOS \")","v":" PESOS "},{"$f":"CONCATENATE(RIGHT(M9,2),\"/100 M.N.\")","v":"00/100 M.N."},null,null,null,null,null,null,null,null,{"$f":"IF(V10<=1,\" PESO \",\" PESOS \")","v":" PESOS "},{"$f":"CONCATENATE(RIGHT(W9,2),\"/100 M.N.\")","v":"11/100 M.N."},null,null,null,null,null,null,null,null,null,null,{"$f":"IF(AH10<=1,\" PESO \",\" PESOS \")","v":" PESOS "},{"$f":"CONCATENATE(RIGHT(AI9,2),\"/100 M.N.\")","v":"00/100 M.N."}]
[null,null,null,null,null,null,null,{"$f":"IF(B10<=999999,\" MIL \",IF(RIGHT(B10,6)=\"000000\",\" DE \",IF(LEFT(RIGHT(B10,6),3)=\"000\",\" \",\" MIL \")))","v":" MIL "},null,null,null,null,null,null,null,null,null,{"$f":"IF(L10<=999999,\" MIL \",IF(RIGHT(L10,6)=\"000000\",\" DE \",IF(LEFT(RIGHT(L10,6),3)=\"000\",\" \",\" MIL \")))","v":" MIL "},null,null,null,null,null,null,null,null,null,{"$f":"IF(V10<=999999,\" MIL \",IF(RIGHT(V10,6)=\"000000\",\" DE \",IF(LEFT(RIGHT(V10,6),3)=\"000\",\" \",\" MIL \")))","v":" MIL "},null,null,null,null,null,null,null,null,null,null,null,{"$f":"IF(AH10<=999999,\" MIL \",IF(RIGHT(AH10,6)=\"000000\",\" DE \",IF(LEFT(RIGHT(AH10,6),3)=\"000\",\" \",\" MIL \")))","v":" MIL "}]
[null,{"$f":"+REG!C17","v":21711.702499999999},{"$f":"DOLLAR(B9,2)","v":"$21,711.70"},null,null,null,null,null,null,null,null,{"$f":"+REG!C19","v":6000},{"$f":"DOLLAR(L9,2)","v":"$6,000.00"},null,null,null,null,null,null,null,null,{"$f":"+REG!C21","v":55135.107499999998},{"$f":"DOLLAR(V9,2)","v":"$55,135.11"},null,null,null,null,null,null,null,null,null,null,80000.003200000006,{"$f":"DOLLAR(AH9,2)","v":"$80,000.00"}]
[null,{"$f":"TRUNC(B9,0)","v":21711},{"$f":"IF(+LEFT(RIGHT(B$10,2),2)<20,LEFT(RIGHT(B$10,2),2),RIGHT(B$10,1))","v":"1"},{"$f":"IF(E12<=22,E10,E11)","v":"11"},{"$f":"RIGHT(B10,2)","v":"11"},null," Y UN","UN",null,null,null,{"$f":"TRUNC(L9,0)","v":6000},{"$f":"IF(+LEFT(RIGHT(L$10,2),2)<20,LEFT(RIGHT(L$10,2),2),RIGHT(L$10,1))","v":"0"},{"$f":"IF(O12<=22,O10,O11)","v":"00"},{"$f":"RIGHT(L10,2)","v":"00"},null," Y UN","UN",null,null,null,{"$f":"TRUNC(V9,0)","v":55135},{"$f":"IF(+LEFT(RIGHT(V$10,2),2)<20,LEFT(RIGHT(V$10,2),2),RIGHT(V$10,1))","v":"5"},{"$f":"IF(Y12<=22,Y10,Y11)","v":"5"},{"$f":"RIGHT(V10,2)","v":"35"},null," Y UN","UN",null,null,null,null,null,{"$f":"TRUNC(AH9,0)","v":80000},{"$f":"IF(+LEFT(RIGHT(AH$10,2),2)<20,LEFT(RIGHT(AH$10,2),2),RIGHT(AH$10,1))","v":"0"},{"$f":"IF(AK12<=22,AK10,AK11)","v":"00"},{"$f":"RIGHT(AH10,2)","v":"00"},null," Y UN","UN"]
[null,{"$f":"+C10","v":"1"},{"$f":"IF(+LEFT(RIGHT(B$10,2),2)<20,LEFT(RIGHT(B$10,2),2),LEFT(RIGHT(B$10,2),1))","v":"1"},{"$f":"+D10","v":"11"},{"$f":"RIGHT(B10,1)","v":"1"},null," Y DOS","DOS",null,null,null,{"$f":"+M10","v":"0"},{"$f":"IF(+LEFT(RIGHT(L$10,2),2)<20,LEFT(RIGHT(L$10,2),2),LEFT(RIGHT(L$10,2),1))","v":"0"},{"$f":"+N10","v":"00"},{"$f":"RIGHT(L10,1)","v":"0"},null," Y DOS","DOS",null,null,null,{"$f":"+W10","v":"5"},{"$f":"IF(+LEFT(RIGHT(V$10,2),2)<20,LEFT(RIGHT(V$10,2),2),LEFT(RIGHT(V$10,2),1))","v":"3"},{"$f":"+X10","v":"5"},{"$f":"RIGHT(V10,1)","v":"5"},null," Y DOS","DOS",null,null,null,null,null,{"$f":"+AI10","v":"0"},{"$f":"IF(+LEFT(RIGHT(AH$10,2),2)<20,LEFT(RIGHT(AH$10,2),2),LEFT(RIGHT(AH$10,2),1))","v":"0"},{"$f":"+AJ10","v":"00"},{"$f":"RIGHT(AH10,1)","v":"0"},null," Y DOS","DOS"]
[null,5,{"$f":"5+C11","v":6},5,{"$f":"1+E10","v":12},null," Y TRES","TRES",null,null,null,5,{"$f":"5+M11","v":5},5,{"$f":"1+O10","v":1},null," Y TRES","TRES",null,null,null,5,{"$f":"5+W11","v":8},5,{"$f":"1+Y10","v":36},null," Y TRES","TRES",null,null,null,null,null,5,{"$f":"5+AI11","v":5},5,{"$f":"1+AK10","v":1},null," Y TRES","TRES"]
[null,{"$f":"+B12+B11+C11","v":7},null,{"$f":"+D12+D11","v":16},{"$f":"IF(B13=5,\"\",CHOOSE(D10,H10,H11,H12,H13,H14,H15,H16,H17,H18,H19,H20,H21,H22,H23,H24,H25,H26,H27,H28,H29,H30))","v":"ONCE"},null," Y CUATRO","CUATRO",null,null,null,{"$f":"+L12+L11+M11","v":5},null,{"$f":"+N12+N11","v":5},{"$f":"IF(L13=5,\"\",CHOOSE(N10,R10,R11,R12,R13,R14,R15,R16,R17,R18,R19,R20,R21,R22,R23,R24,R25,R26,R27,R28,R29,R30))","v":""},null," Y CUATRO","CUATRO",null,null,null,{"$f":"+V12+V11+W11","v":13},null,{"$f":"+X12+X11","v":10},{"$f":"IF(V13=5,\"\",CHOOSE(X10,AB10,AB11,AB12,AB13,AB14,AB15,AB16,AB17,AB18,AB19,AB20,AB21,AB22,AB23,AB24,AB25,AB26,AB27,AB28,AB29,AB30))","v":"CINCO"},null," Y CUATRO","CUATRO",null,null,null,null,null,{"$f":"+AH12+AH11+AI11","v":5},null,{"$f":"+AJ12+AJ11","v":5},{"$f":"IF(AH13=5,\"\",CHOOSE(AJ10,AN10,AN11,AN12,AN13,AN14,AN15,AN16,AN17,AN18,AN19,AN20,AN21,AN22,AN23,AN24,AN25,AN26,AN27,AN28,AN29,AN30))","v":""},null," Y CUATRO","CUATRO"]
[null,null,null,null,{"$f":"IF(D13=5,\"\",CHOOSE(D10,G10,G11,G12,G13,G14,G15,G16,G17,G18,G19))","v":{"$error":"#VALUE!"}},null," Y CINCO","CINCO",null,null,null,null,null,null,{"$f":"IF(N13=5,\"\",CHOOSE(N10,Q10,Q11,Q12,Q13,Q14,Q15,Q16,Q17,Q18,Q19))","v":""},null," Y CINCO","CINCO",null,null,null,null,null,null,{"$f":"IF(X13=5,\"\",CHOOSE(X10,AA10,AA11,AA12,AA13,AA14,AA15,AA16,AA17,AA18,AA19))","v":" Y CINCO"},null," Y CINCO","CINCO",null,null,null,null,null,null,null,null,{"$f":"IF(AJ13=5,\"\",CHOOSE(AJ10,AM10,AM11,AM12,AM13,AM14,AM15,AM16,AM17,AM18,AM19))","v":""},null," Y CINCO","CINCO"]
[null,null,null,null,{"$f":"CHOOSE(C11,G20,G21,G22,G23,G24,G25,G26,G27,G28,G29)","v":"DIECI"},null," Y SEIS","SEIS",null,null,null,null,null,null,{"$f":"CHOOSE(M11,Q20,Q21,Q22,Q23,Q24,Q25,Q26,Q27,Q28,Q29)","v":{"$error":"#VALUE!"}},null," Y SEIS","SEIS",null,null,null,null,null,null,{"$f":"CHOOSE(W11,AA20,AA21,AA22,AA23,AA24,AA25,AA26,AA27,AA28,AA29)","v":"TREINTA"},null," Y SEIS","SEIS",null,null,null,null,null,null,null,null,{"$f":"CHOOSE(AI11,AM20,AM21,AM22,AM23,AM24,AM25,AM26,AM27,AM28,AM29)","v":{"$error":"#VALUE!"}},null," Y SEIS","SEIS"]
[null,null,null,null,null,null," Y SIETE","SIETE",null,null,null,null,null,null,null,null," Y SIETE","SIETE",null,null,null,null,null,null,null,null," Y SIETE","SIETE",null,null,null,null,null,null,null,null,null,null," Y SIETE","SIETE"]
[null,null,null,null,{"$f":"IF(E12<=22,E13,IF(E12<=30,CONCATENATE(E15,E13),CONCATENATE(E15,E14)))","v":"ONCE"},null," Y OCHO","OCHO",null,null,null,null,null,null,{"$f":"IF(O12<=22,O13,IF(O12<=30,CONCATENATE(O15,O13),CONCATENATE(O15,O14)))","v":""},null," Y OCHO","OCHO",null,null,null,null,null,null,{"$f":"IF(Y12<=22,Y13,IF(Y12<=30,CONCATENATE(Y15,Y13),CONCATENATE(Y15,Y14)))","v":"TREINTA Y CINCO"},null," Y OCHO","OCHO",null,null,null,null,null,null,null,null,{"$f":"IF(AK12<=22,AK13,IF(AK12<=30,CONCATENATE(AK15,AK13),CONCATENATE(AK15,AK14)))","v":""},null," Y OCHO","OCHO"]
[null,null,null,null,null,null," Y NUEVE","NUEVE",null,null,null,null,null,null,null,null," Y NUEVE","NUEVE",null,null,null,null,null,null,null,null," Y NUEVE","NUEVE",null,null,null,null,null,null,null,null,null,null," Y NUEVE","NUEVE"]
[null,null,null,null,null,null,"","DIEZ",null,null,null,null,null,null,null,null,"","DIEZ",null,null,null,null,null,null,null,null,"","DIEZ",null,null,null,null,null,null,null,null,null,null,"","DIEZ"]
[null,null,null,null,null,null,"DIECI","ONCE",null,null,null,null,null,null,null,null,"DIECI","ONCE",null,null,null,null,null,null,null,null,"DIECI","ONCE",null,null,null,null,null,null,null,null,null,null,"DIECI","ONCE"]
[null,null,null,null,null,null,"VEINTI","DOCE",null,null,null,null,null,null,null,null,"VEINTI","DOCE",null,null,null,null,null,null,null,null,"VEINTI","DOCE",null,null,null,null,null,null,null,null,null,null,"VEINTI","DOCE"]
[null,null,null,null,null,null,"TREINTA","TRECE",null,null,null,null,null,null,null,null,"TREINTA","TRECE",null,null,null,null,null,null,null,null,"TREINTA","TRECE",null,null,null,null,null,null,null,null,null,null,"TREINTA","TRECE"]
[null,null,null,null,null,null,"CUARENTA","CATORCE",null,null,null,null,null,null,null,null,"CUARENTA","CATORCE",null,null,null,null,null,null,null,null,"CUARENTA","CATORCE",null,null,null,null,null,null,null,null,null,null,"CUARENTA","CATORCE"]
[null,null,null,null,null,null,"CINCUENTA","QUINCE",null,null,null,null,null,null,null,null,"CINCUENTA","QUINCE",null,null,null,null,null,null,null,null,"CINCUENTA","QUINCE",null,null,null,null,null,null,null,null,null,null,"CINCUENTA","QUINCE"]
[null,null,null,null,null,null,"SESENTA","DIECISEIS",null,null,null,null,null,null,null,null,"SESENTA","DIECISEIS",null,null,null,null,null,null,null,null,"SESENTA","DIECISEIS",null,null,null,null,null,null,null,null,null,null,"SESENTA","DIECISEIS"]
[null,null,null,null,null,null,"SETENTA","DIECISIETE",null,null,null,null,null,null,null,null,"SETENTA","DIECISIETE",null,null,null,null,null,null,null,null,"SETENTA","DIECISIETE",null,null,null,null,null,null,null,null,null,null,"SETENTA","DIECISIETE"]
[null,null,null,null,null,null,"OCHENTA","DIECIOCHO",null,null,null,null,null,null,null,null,"OCHENTA","DIECIOCHO",null,null,null,null,null,null,null,null,"OCHENTA","DIECIOCHO",null,null,null,null,null,null,null,null,null,null,"OCHENTA","DIECIOCHO"]
[null,null,null,null,null,null,"NOVENTA","DIECINUEVE",null,null,null,null,null,null,null,null,"NOVENTA","DIECINUEVE",null,null,null,null,null,null,null,null,"NOVENTA","DIECINUEVE",null,null,null,null,null,null,null,null,null,null,"NOVENTA","DIECINUEVE"]
[null,null,null,null,null,null,"","VEINTE",null,null,null,null,null,null,null,null,"","VEINTE",null,null,null,null,null,null,null,null,"","VEINTE",null,null,null,null,null,null,null,null,null,null,"","VEINTE"]
[null,null,null,null,null,null,null,"VEINTIUN",null,null,null,null,null,null,null,null,null,"VEINTIUN",null,null,null,null,null,null,null,null,null,"VEINTIUN",null,null,null,null,null,null,null,null,null,null,null,"VEINTIUN"]
[]
[]
[]
[null,{"$f":"RIGHT(B10,3)","v":"711"},null,null,null,null,null,null,null,null,null,{"$f":"RIGHT(L10,3)","v":"000"},null,null,null,null,null,null,null,null,null,{"$f":"RIGHT(V10,3)","v":"135"},null,null,null,null,null,null,null,null,null,null,null,{"$f":"RIGHT(AH10,3)","v":"000"}]
[null,5,null,null,null,null,null,null,null,null,null,5,null,null,null,null,null,null,null,null,null,5,null,null,null,null,null,null,null,null,null,null,null,5]
[null,{"$f":"+B34+B35","v":716},null,null,null,null,null,null,null,null,null,{"$f":"+L34+L35","v":5},null,null,null,null,null,null,null,null,null,{"$f":"+V34+V35","v":140},null,null,null,null,null,null,null,null,null,null,null,{"$f":"+AH34+AH35","v":5}]
[null,null,{"$f":"IF(B10<100,10,LEFT(RIGHT(B$10,3),1))","v":"7"},{"$f":"IF(B36=105,\"CIEN\",IF(B40=5,\"\",CHOOSE(C37,E37,E38,E39,E40,E41,E42,E43,E44,E45,E50)))","v":"SETECIENTOS "},"CIENTO ",null,null,null,null,null,null,null,{"$f":"IF(L10<100,10,LEFT(RIGHT(L$10,3),1))","v":"0"},{"$f":"IF(L36=105,\"CIEN\",IF(L40=5,\"\",CHOOSE(M37,O37,O38,O39,O40,O41,O42,O43,O44,O45,O50)))","v":""},"CIENTO ",null,null,null,null,null,null,null,{"$f":"IF(V10<100,10,LEFT(RIGHT(V$10,3),1))","v":"1"},{"$f":"IF(V36=105,\"CIEN\",IF(V40=5,\"\",CHOOSE(W37,Y37,Y38,Y39,Y40,Y41,Y42,Y43,Y44,Y45,Y50)))","v":"CIENTO "},"CIENTO ",null,null,null,null,null,null,null,null,null,{"$f":"IF(AH10<100,10,LEFT(RIGHT(AH$10,3),1))","v":"0"},{"$f":"IF(AH36=105,\"CIEN\",IF(AH40=5,\"\",CHOOSE(AI37,AK37,AK38,AK39,AK40,AK41,AK42,AK43,AK44,AK45,AK50)))","v":""},"CIENTO "]
[null,{"$f":"+C37","v":"7"},null,null,"DOSCIENTOS ",null,null,null,null,null,null,{"$f":"+M37","v":"0"},null,null,"DOSCIENTOS ",null,null,null,null,null,null,{"$f":"+W37","v":"1"},null,null,"DOSCIENTOS ",null,null,null,null,null,null,null,null,{"$f":"+AI37","v":"0"},null,null,"DOSCIENTOS "]
[null,5,null,null,"TRECIENTOS ",null,null,null,null,null,null,5,null,null,"TRECIENTOS ",null,null,null,null,null,null,5,null,null,"TRECIENTOS ",null,null,null,null,null,null,null,null,5,null,null,"TRECIENTOS "]
[null,{"$f":"+B39+B38","v":12},null,null,"CUATROCIENTOS ",null,null,null,null,null,null,{"$f":"+L39+L38","v":5},null,null,"CUATROCIENTOS ",null,null,null,null,null,null,{"$f":"+V39+V38","v":6},null,null,"CUATROCIENTOS ",null,null,null,null,null,null,null,null,{"$f":"+AH39+AH38","v":5},null,null,"CUATROCIENTOS "]
[null,null,null,null,"QUINIENTOS ",null,null,null,null,null,null,null,null,null,"QUINIENTOS ",null,null,null,null,null,null,null,null,null,"QUINIENTOS ",null,null,null,null,null,null,null,null,null,null,null,"QUINIENTOS "]
[null,null,null,null,"SEISCIENTOS ",null,null,null,null,null,null,null,null,null,"SEISCIENTOS ",null,null,null,null,null,null,null,null,null,"SEISCIENTOS ",null,null,null,null,null,null,null,null,null,null,null,"SEISCIENTOS "]
[null,null,null,null,"SETECIENTOS ",null,null,null,null,null,null,null,null,null,"SETECIENTOS ",null,null,null,null,null,null,null,null,null,"SETECIENTOS ",null,null,null,null,null,null,null,null,null,null,null,"SETECIENTOS "]
[null,null,null,null,"OCHOCIENTOS ",null,null,null,null,null,null,null,null,null,"OCHOCIENTOS ",null,null,null,null,null,null,null,null,null,"OCHOCIENTOS ",null,null,null,null,null,null,null,null,null,null,null,"OCHOCIENTOS "]
[null,null,null,null,"NOVECIENTOS ",null,null,null,null,null,null,null,null,null,"NOVECIENTOS ",null,null,null,null,null,null,null,null,null,"NOVECIENTOS ",null,null,null,null,null,null,null,null,null,null,null,"NOVECIENTOS "]
[]
[]
[]
[null,{"$f":"RIGHT(B10,5)","v":"21711"},{"$f":"+B49+1-1","v":21711},null,null,null,null,null,null,null,null,{"$f":"RIGHT(L10,5)","v":"6000"},{"$f":"+L49+1-1","v":6000},null,null,null,null,null,null,null,null,{"$f":"RIGHT(V10,5)","v":"55135"},{"$f":"+V49+1-1","v":55135},null,null,null,null,null,null,null,null,null,null,{"$f":"RIGHT(AH10,5)","v":"80000"},{"$f":"+AH49+1-1","v":80000}]
[null,{"$f":"IF(AND(C49<10000,C49>999),LEFT(C49,1),LEFT(B49,2))","v":"21"},{"$f":"IF(+LEFT(RIGHT(B$50,2),2)<20,LEFT(RIGHT(B$50,2),2),RIGHT(B$50,1))","v":"1"},{"$f":"IF(E52<=22,E50,E51)","v":"21"},{"$f":"RIGHT(B50,2)","v":"21"},null," Y UN","UN",null,null,null,{"$f":"IF(AND(M49<10000,M49>999),LEFT(M49,1),LEFT(L49,2))","v":"6"},{"$f":"IF(+LEFT(RIGHT(L$50,2),2)<20,LEFT(RIGHT(L$50,2),2),RIGHT(L$50,1))","v":"6"},{"$f":"IF(O52<=22,O50,O51)","v":"6"},{"$f":"RIGHT(L50,2)","v":"6"},null," Y UN","UN",null,null,null,{"$f":"IF(AND(W49<10000,W49>999),LEFT(W49,1),LEFT(V49,2))","v":"55"},{"$f":"IF(+LEFT(RIGHT(V$50,2),2)<20,LEFT(RIGHT(V$50,2),2),RIGHT(V$50,1))","v":"5"},{"$f":"IF(Y52<=22,Y50,Y51)","v":"5"},{"$f":"RIGHT(V50,2)","v":"55"},null," Y UN","UN",null,null,null,null,null,{"$f":"IF(AND(AI49<10000,AI49>999),LEFT(AI49,1),LEFT(AH49,2))","v":"80"},{"$f":"IF(+LEFT(RIGHT(AH$50,2),2)<20,LEFT(RIGHT(AH$50,2),2),RIGHT(AH$50,1))","v":"0"},{"$f":"IF(AK52<=22,AK50,AK51)","v":"0"},{"$f":"RIGHT(AH50,2)","v":"80"},null," Y UN","UN"]
[null,{"$f":"+C50","v":"1"},{"$f":"IF(+LEFT(RIGHT(B$50,2),2)<20,LEFT(RIGHT(B$50,2),2),LEFT(RIGHT(B$50,2),1))","v":"2"},{"$f":"+D50","v":"21"},{"$f":"RIGHT(B50,1)","v":"1"},null," Y DOS","DOS",null,null,null,{"$f":"+M50","v":"6"},{"$f":"IF(+LEFT(RIGHT(L$50,2),2)<20,LEFT(RIGHT(L$50,2),2),LEFT(RIGHT(L$50,2),1))","v":"6"},{"$f":"+N50","v":"6"},{"$f":"RIGHT(L50,1)","v":"6"},null," Y DOS","DOS",null,null,null,{"$f":"+W50","v":"5"},{"$f":"IF(+LEFT(RIGHT(V$50,2),2)<20,LEFT(RIGHT(V$50,2),2),LEFT(RIGHT(V$50,2),1))","v":"5"},{"$f":"+X50","v":"5"},{"$f":"RIGHT(V50,1)","v":"5"},null," Y DOS","DOS",null,null,null,null,null,{"$f":"+AI50","v":"0"},{"$f":"IF(+LEFT(RIGHT(AH$50,2),2)<20,LEFT(RIGHT(AH$50,2),2),LEFT(RIGHT(AH$50,2),1))","v":"8"},{"$f":"+AJ50","v":"0"},{"$f":"RIGHT(AH50,1)","v":"0"},null," Y DOS","DOS"]
[null,5,{"$f":"5+C51","v":7},5,{"$f":"1+E50","v":22},null," Y TRES","TRES",null,null,null,5,{"$f":"5+M51","v":11},5,{"$f":"1+O50","v":7},null," Y TRES","TRES",null,null,null,5,{"$f":"5+W51","v":10},5,{"$f":"1+Y50","v":56},null," Y TRES","TRES",null,null,null,null,null,5,{"$f":"5+AI51","v":13},5,{"$f":"1+AK50","v":81},null," Y TRES","TRES"]
[null,{"$f":"+B52+B51+C51","v":8},null,{"$f":"+D52+D51","v":26},{"$f":"IF(B53=5,\"\",CHOOSE(D50,H50,H51,H52,H53,H54,H55,H56,H57,H58,H59,H60,H61,H62,H63,H64,H65,H66,H67,H68,H69,H70))","v":"VEINTIUN"},null," Y CUATRO","CUATRO",null,null,null,{"$f":"+L52+L51+M51","v":17},null,{"$f":"+N52+N51","v":11},{"$f":"IF(L53=5,\"\",CHOOSE(N50,R50,R51,R52,R53,R54,R55,R56,R57,R58,R59,R60,R61,R62,R63,R64,R65,R66,R67,R68,R69,R70))","v":"SEIS"},null," Y CUATRO","CUATRO",null,null,null,{"$f":"+V52+V51+W51","v":15},null,{"$f":"+X52+X51","v":10},{"$f":"IF(V53=5,\"\",CHOOSE(X50,AB50,AB51,AB52,AB53,AB54,AB55,AB56,AB57,AB58,AB59,AB60,AB61,AB62,AB63,AB64,AB65,AB66,AB67,AB68,AB69,AB70))","v":"CINCO"},null," Y CUATRO","CUATRO",null,null,null,null,null,{"$f":"+AH52+AH51+AI51","v":13},null,{"$f":"+AJ52+AJ51","v":5},{"$f":"IF(AH53=5,\"\",CHOOSE(AJ50,AN50,AN51,AN52,AN53,AN54,AN55,AN56,AN57,AN58,AN59,AN60,AN61,AN62,AN63,AN64,AN65,AN66,AN67,AN68,AN69,AN70))","v":{"$error":"#VALUE!"}},null," Y CUATRO","CUATRO"]
[null,null,null,null,{"$f":"IF(D53=5,\"\",CHOOSE(D50,G50,G51,G52,G53,G54,G55,G56,G57,G58,G59))","v":{"$error":"#VALUE!"}},null," Y CINCO","CINCO",null,null,null,null,null,null,{"$f":"IF(N53=5,\"\",CHOOSE(N50,Q50,Q51,Q52,Q53,Q54,Q55,Q56,Q57,Q58,Q59))","v":" Y SEIS"},null," Y CINCO","CINCO",null,null,null,null,null,null,{"$f":"IF(X53=5,\"\",CHOOSE(X50,AA50,AA51,AA52,AA53,AA54,AA55,AA56,AA57,AA58,AA59))","v":" Y CINCO"},null," Y CINCO","CINCO",null,null,null,null,null,null,null,null,{"$f":"IF(AJ53=5,\"\",CHOOSE(AJ50,AM50,AM51,AM52,AM53,AM54,AM55,AM56,AM57,AM58,AM59))","v":""},null," Y CINCO","CINCO"]
[null,null,null,null,{"$f":"CHOOSE(C51,G60,G61,G62,G63,G64,G65,G66,G67,G68,G69)","v":"VEINTI"},null," Y SEIS","SEIS",null,null,null,null,null,null,{"$f":"CHOOSE(M51,Q60,Q61,Q62,Q63,Q64,Q65,Q66,Q67,Q68,Q69)","v":"SESENTA"},null," Y SEIS","SEIS",null,null,null,null,null,null,{"$f":"CHOOSE(W51,AA60,AA61,AA62,AA63,AA64,AA65,AA66,AA67,AA68,AA69)","v":"CINCUENTA"},null," Y SEIS","SEIS",null,null,null,null,null,null,null,null,{"$f":"CHOOSE(AI51,AM60,AM61,AM62,AM63,AM64,AM65,AM66,AM67,AM68,AM69)","v":"OCHENTA"},null," Y SEIS","SEIS"]
[null,null,null,null,null,null," Y SIETE","SIETE",null,null,null,null,null,null,null,null," Y SIETE","SIETE",null,null,null,null,null,null,null,null," Y SIETE","SIETE",null,null,null,null,null,null,null,null,null,null," Y SIETE","SIETE"]
[null,null,null,null,{"$f":"IF(AND(C49>=1000,C49<2000,B10<99000),\"\",IF(E52<=22,E53,IF(E52<=30,CONCATENATE(E55,E53),CONCATENATE(E55,E54))))","v":"VEINTIUN"},null," Y OCHO","OCHO",null,null,null,null,null,null,{"$f":"IF(AND(M49>=1000,M49<2000,L10<99000),\"\",IF(O52<=22,O53,IF(O52<=30,CONCATENATE(O55,O53),CONCATENATE(O55,O54))))","v":"SEIS"},null," Y OCHO","OCHO",null,null,null,null,null,null,{"$f":"IF(AND(W49>=1000,W49<2000,V10<99000),\"\",IF(Y52<=22,Y53,IF(Y52<=30,CONCATENATE(Y55,Y53),CONCATENATE(Y55,Y54))))","v":"CINCUENTA Y CINCO"},null," Y OCHO","OCHO",null,null,null,null,null,null,null,null,{"$f":"IF(AND(AI49>=1000,AI49<2000,AH10<99000),\"\",IF(AK52<=22,AK53,IF(AK52<=30,CONCATENATE(AK55,AK53),CONCATENATE(AK55,AK54))))","v":"OCHENTA"},null," Y OCHO","OCHO"]
[null,null,null,null,null,null," Y NUEVE","NUEVE",null,null,null,null,null,null,null,null," Y NUEVE","NUEVE",null,null,null,null,null,null,null,null," Y NUEVE","NUEVE",null,null,null,null,null,null,null,null,null,null," Y NUEVE","NUEVE"]
[null,null,null,null,null,null,"","DIEZ",null,null,null,null,null,null,null,null,"","DIEZ",null,null,null,null,null,null,null,null,"","DIEZ",null,null,null,null,null,null,null,null,null,null,"","DIEZ"]
[null,null,null,null,null,null,"DIECI","ONCE",null,null,null,null,null,null,null,null,"DIECI","ONCE",null,null,null,null,null,null,null,null,"DIECI","ONCE",null,null,null,null,null,null,null,null,null,null,"DIECI","ONCE"]
[null,null,null,null,null,null,"VEINTI","DOCE",null,null,null,null,null,null,null,null,"VEINTI","DOCE",null,null,null,null,null,null,null,null,"VEINTI","DOCE",null,null,null,null,null,null,null,null,null,null,"VEINTI","DOCE"]
[null,null,null,null,null,null,"TREINTA","TRECE",null,null,null,null,null,null,null,null,"TREINTA","TRECE",null,null,null,null,null,null,null,null,"TREINTA","TRECE",null,null,null,null,null,null,null,null,null,null,"TREINTA","TRECE"]
[null,null,null,null,null,null,"CUARENTA","CATORCE",null,null,null,null,null,null,null,null,"CUARENTA","CATORCE",null,null,null,null,null,null,null,null,"CUARENTA","CATORCE",null,null,null,null,null,null,null,null,null,null,"CUARENTA","CATORCE"]
[null,null,null,null,null,null,"CINCUENTA","QUINCE",null,null,null,null,null,null,null,null,"CINCUENTA","QUINCE",null,null,null,null,null,null,null,null,"CINCUENTA","QUINCE",null,null,null,null,null,null,null,null,null,null,"CINCUENTA","QUINCE"]
[null,null,null,null,null,null,"SESENTA","DIECISEIS",null,null,null,null,null,null,null,null,"SESENTA","DIECISEIS",null,null,null,null,null,null,null,null,"SESENTA","DIECISEIS",null,null,null,null,null,null,null,null,null,null,"SESENTA","DIECISEIS"]
[null,null,null,null,null,null,"SETENTA","DIECISIETE",null,null,null,null,null,null,null,null,"SETENTA","DIECISIETE",null,null,null,null,null,null,null,null,"SETENTA","DIECISIETE",null,null,null,null,null,null,null,null,null,null,"SETENTA","DIECISIETE"]
[null,{"$f":"RIGHT(B$10,6)","v":"21711"},null,null,null,null,"OCHENTA","DIECIOCHO",null,null,null,{"$f":"RIGHT(L$10,6)","v":"6000"},null,null,null,null,"OCHENTA","DIECIOCHO",null,null,null,{"$f":"RIGHT(V$10,6)","v":"55135"},null,null,null,null,"OCHENTA","DIECIOCHO",null,null,null,null,null,{"$f":"RIGHT(AH$10,6)","v":"80000"},null,null,null,null,"OCHENTA","DIECIOCHO"]
[null,{"$f":"LEFT(B67,3)","v":"217"},null,null,null,null,"NOVENTA","DIECINUEVE",null,null,null,{"$f":"LEFT(L67,3)","v":"600"},null,null,null,null,"NOVENTA","DIECINUEVE",null,null,null,{"$f":"LEFT(V67,3)","v":"551"},null,null,null,null,"NOVENTA","DIECINUEVE",null,null,null,null,null,{"$f":"LEFT(AH67,3)","v":"800"},null,null,null,null,"NOVENTA","DIECINUEVE"]
[null,5,null,null,null,null,"","VEINTE",null,null,null,5,null,null,null,null,"","VEINTE",null,null,null,5,null,null,null,null,"","VEINTE",null,null,null,null,null,5,null,null,null,null,"","VEINTE"]
[null,{"$f":"+B68+B69","v":222},null,null," ",null,null,"VEINTIUN",null,null,null,{"$f":"+L68+L69","v":605},null,null," ",null,null,"VEINTIUN",null,null,null,{"$f":"+V68+V69","v":556},null,null," ",null,null,"VEINTIUN",null,null,null,null,null,{"$f":"+AH68+AH69","v":805},null,null," ",null,null,"VEINTIUN"]
[null,null,{"$f":"IF(B10<100,10,LEFT(RIGHT(B$10,6),1))","v":"2"},{"$f":"IF(B70=105,\"CIEN\",IF(B74=5,\"\",CHOOSE(C71,E71,E72,E73,E74,E75,E76,E77,E78,E79,E80)))","v":"DOSCIENTOS "},"CIENTO ",null,null,null,null,null,null,null,{"$f":"IF(L10<100,10,LEFT(RIGHT(L$10,6),1))","v":"6"},{"$f":"IF(L70=105,\"CIEN\",IF(L74=5,\"\",CHOOSE(M71,O71,O72,O73,O74,O75,O76,O77,O78,O79,O80)))","v":"SEISCIENTOS "},"CIENTO ",null,null,null,null,null,null,null,{"$f":"IF(V10<100,10,LEFT(RIGHT(V$10,6),1))","v":"5"},{"$f":"IF(V70=105,\"CIEN\",IF(V74=5,\"\",CHOOSE(W71,Y71,Y72,Y73,Y74,Y75,Y76,Y77,Y78,Y79,Y80)))","v":"QUINIENTOS "},"CIENTO ",null,null,null,null,null,null,null,null,null,{"$f":"IF(AH10<100,10,LEFT(RIGHT(AH$10,6),1))","v":"8"},{"$f":"IF(AH70=105,\"CIEN\",IF(AH74=5,\"\",CHOOSE(AI71,AK71,AK72,AK73,AK74,AK75,AK76,AK77,AK78,AK79,AK80)))","v":"OCHOCIENTOS "},"CIENTO "]
[null,{"$f":"+C71","v":"2"},null,null,"DOSCIENTOS ",null,null,null,null,null,null,{"$f":"+M71","v":"6"},null,null,"DOSCIENTOS ",null,null,null,null,null,null,{"$f":"+W71","v":"5"},null,null,"DOSCIENTOS ",null,null,null,null,null,null,null,null,{"$f":"+AI71","v":"8"},null,null,"DOSCIENTOS "]
[null,5,null,null,"TRECIENTOS ",null,null,null,null,null,null,5,null,null,"TRECIENTOS ",null,null,null,null,null,null,5,null,null,"TRECIENTOS ",null,null,null,null,null,null,null,null,5,null,null,"TRECIENTOS "]
[null,{"$f":"+B73+B72","v":7},null,null,"CUATROCIENTOS ",null,null,null,null,null,null,{"$f":"+L73+L72","v":11},null,null,"CUATROCIENTOS ",null,null,null,null,null,null,{"$f":"+V73+V72","v":10},null,null,"CUATROCIENTOS ",null,null,null,null,null,null,null,null,{"$f":"+AH73+AH72","v":13},null,null,"CUATROCIENTOS "]
[null,null,null,null,"QUINIENTOS ",null,null,null,null,null,null,null,null,null,"QUINIENTOS ",null,null,null,null,null,null,null,null,null,"QUINIENTOS ",null,null,null,null,null,null,null,null,null,null,null,"QUINIENTOS "]
[null,null,null,null,"SEISCIENTOS ",null,null,null,null,null,null,null,null,null,"SEISCIENTOS ",null,null,null,null,null,null,null,null,null,"SEISCIENTOS ",null,null,null,null,null,null,null,null,null,null,null,"SEISCIENTOS "]
[null,null,null,null,"SETECIENTOS ",null,null,null,null,null,null,null,null,null,"SETECIENTOS ",null,null,null,null,null,null,null,null,null,"SETECIENTOS ",null,null,null,null,null,null,null,null,null,null,null,"SETECIENTOS "]
[null,null,null,null,"OCHOCIENTOS ",null,null,null,null,null,null,null,null,null,"OCHOCIENTOS ",null,null,null,null,null,null,null,null,null,"OCHOCIENTOS ",null,null,null,null,null,null,null,null,null,null,null,"OCHOCIENTOS "]
[null,null,null,null,"NOVECIENTOS ",null,null,null,null,null,null,null,null,null,"NOVECIENTOS ",null,null,null,null,null,null,null,null,null,"NOVECIENTOS ",null,null,null,null,null,null,null,null,null,null,null,"NOVECIENTOS "]
[null,null,null,null," ",null,null,null,null,null,null,null,null,null," ",null,null,null,null,null,null,null,null,null," ",null,null,null,null,null,null,null,null,null,null,null," "]
[]
[]
[]
[null,{"$f":"RIGHT(B10,8)","v":"21711"},{"$f":"+B84+1-1","v":21711},null,null,null,null,null,null,null,null,{"$f":"RIGHT(L10,8)","v":"6000"},{"$f":"+L84+1-1","v":6000},null,null,null,null,null,null,null,null,{"$f":"RIGHT(V10,8)","v":"55135"},{"$f":"+V84+1-1","v":55135},null,null,null,null,null,null,null,null,null,null,{"$f":"RIGHT(AH10,8)","v":"80000"},{"$f":"+AH84+1-1","v":80000}]
[null,{"$f":"IF(AND(C84<10000000,C84>999999),LEFT(C84,1),LEFT(B84,2))","v":"21"},{"$f":"IF(+LEFT(RIGHT(B$85,2),2)<20,LEFT(RIGHT(B$85,2),2),RIGHT(B$85,2))","v":"21"},{"$f":"IF(E87<=22,E85,E86)","v":"21"},{"$f":"RIGHT(B85,2)","v":"21"},null," Y UN","UN",null,null,null,{"$f":"IF(AND(M84<10000000,M84>999999),LEFT(M84,1),LEFT(L84,2))","v":"60"},{"$f":"IF(+LEFT(RIGHT(L$85,2),2)<20,LEFT(RIGHT(L$85,2),2),RIGHT(L$85,2))","v":"60"},{"$f":"IF(O87<=22,O85,O86)","v":"0"},{"$f":"RIGHT(L85,2)","v":"60"},null," Y UN","UN",null,null,null,{"$f":"IF(AND(W84<10000000,W84>999999),LEFT(W84,1),LEFT(V84,2))","v":"55"},{"$f":"IF(+LEFT(RIGHT(V$85,2),2)<20,LEFT(RIGHT(V$85,2),2),RIGHT(V$85,2))","v":"55"},{"$f":"IF(Y87<=22,Y85,Y86)","v":"5"},{"$f":"RIGHT(V85,2)","v":"55"},null," Y UN","UN",null,null,null,null,null,{"$f":"IF(AND(AI84<10000000,AI84>999999),LEFT(AI84,1),LEFT(AH84,2))","v":"80"},{"$f":"IF(+LEFT(RIGHT(AH$85,2),2)<20,LEFT(RIGHT(AH$85,2),2),RIGHT(AH$85,2))","v":"80"},{"$f":"IF(AK87<=22,AK85,AK86)","v":"0"},{"$f":"RIGHT(AH85,2)","v":"80"},null," Y UN","UN"]
[null,{"$f":"+C85","v":"21"},{"$f":"IF(+LEFT(RIGHT(B$10,8),2)<20,LEFT(RIGHT(B$86,2),2),LEFT(RIGHT(B$86,2),1))","v":"2"},{"$f":"+D85","v":"21"},{"$f":"RIGHT(B85,1)","v":"1"},null," Y DOS","DOS",null,null,null,{"$f":"+M85","v":"60"},{"$f":"IF(+LEFT(RIGHT(L$10,8),2)<20,LEFT(RIGHT(L$86,2),2),LEFT(RIGHT(L$86,2),1))","v":"6"},{"$f":"+N85","v":"0"},{"$f":"RIGHT(L85,1)","v":"0"},null," Y DOS","DOS",null,null,null,{"$f":"+W85","v":"55"},{"$f":"IF(+LEFT(RIGHT(V$10,8),2)<20,LEFT(RIGHT(V$86,2),2),LEFT(RIGHT(V$86,2),1))","v":"5"},{"$f":"+X85","v":"5"},{"$f":"RIGHT(V85,1)","v":"5"},null," Y DOS","DOS",null,null,null,null,null,{"$f":"+AI85","v":"80"},{"$f":"IF(+LEFT(RIGHT(AH$10,8),2)<20,LEFT(RIGHT(AH$86,2),2),LEFT(RIGHT(AH$86,2),1))","v":"8"},{"$f":"+AJ85","v":"0"},{"$f":"RIGHT(AH85,1)","v":"0"},null," Y DOS","DOS"]
[null,5,{"$f":"5+C86","v":7},5,{"$f":"1+E85","v":22},null," Y TRES","TRES",null,null,null,5,{"$f":"5+M86","v":11},5,{"$f":"1+O85","v":61},null," Y TRES","TRES",null,null,null,5,{"$f":"5+W86","v":10},5,{"$f":"1+Y85","v":56},null," Y TRES","TRES",null,null,null,null,null,5,{"$f":"5+AI86","v":13},5,{"$f":"1+AK85","v":81},null," Y TRES","TRES"]
[null,{"$f":"+B87+B86+C86","v":28},null,{"$f":"+D87+D86","v":26},{"$f":"IF(D85=\"00\",\"\",CHOOSE(D85,H85,H86,H87,H88,H89,H90,H91,H92,H93,H94,H95,H96,H97,H98,H99,H100,H101,H102,H103,H104,H105))","v":"VEINTIUN"},null," Y CUATRO","CUATRO",null,null,null,{"$f":"+L87+L86+M86","v":71},null,{"$f":"+N87+N86","v":5},{"$f":"IF(N85=\"00\",\"\",CHOOSE(N85,R85,R86,R87,R88,R89,R90,R91,R92,R93,R94,R95,R96,R97,R98,R99,R100,R101,R102,R103,R104,R105))","v":{"$error":"#VALUE!"}},null," Y CUATRO","CUATRO",null,null,null,{"$f":"+V87+V86+W86","v":65},null,{"$f":"+X87+X86","v":10},{"$f":"IF(X85=\"00\",\"\",CHOOSE(X85,AB85,AB86,AB87,AB88,AB89,AB90,AB91,AB92,AB93,AB94,AB95,AB96,AB97,AB98,AB99,AB100,AB101,AB102,AB103,AB104,AB105))","v":"CINCO"},null," Y CUATRO","CUATRO",null,null,null,null,null,{"$f":"+AH87+AH86+AI86","v":93},null,{"$f":"+AJ87+AJ86","v":5},{"$f":"IF(AJ85=\"00\",\"\",CHOOSE(AJ85,AN85,AN86,AN87,AN88,AN89,AN90,AN91,AN92,AN93,AN94,AN95,AN96,AN97,AN98,AN99,AN100,AN101,AN102,AN103,AN104,AN105))","v":{"$error":"#VALUE!"}},null," Y CUATRO","CUATRO"]
[null,null,null,null,{"$f":"IF(D88=5,\"\",CHOOSE(D85,G85,G86,G87,G88,G89,G90,G91,G92,G93,G94))","v":{"$error":"#VALUE!"}},null," Y CINCO","CINCO",null,null,null,null,null,null,{"$f":"IF(N88=5,\"\",CHOOSE(N85,Q85,Q86,Q87,Q88,Q89,Q90,Q91,Q92,Q93,Q94))","v":""},null," Y CINCO","CINCO",null,null,null,null,null,null,{"$f":"IF(X88=5,\"\",CHOOSE(X85,AA85,AA86,AA87,AA88,AA89,AA90,AA91,AA92,AA93,AA94))","v":" Y CINCO"},null," Y CINCO","CINCO",null,null,null,null,null,null,null,null,{"$f":"IF(AJ88=5,\"\",CHOOSE(AJ85,AM85,AM86,AM87,AM88,AM89,AM90,AM91,AM92,AM93,AM94))","v":""},null," Y CINCO","CINCO"]
[null,null,null,null,{"$f":"IF(C86=\"0\",\"\",CHOOSE(C86,G95,G96,G97,G98,G99,G100,G101,G102,G103,G104))","v":"VEINTI"},null," Y SEIS","SEIS",null,null,null,null,null,null,{"$f":"IF(M86=\"0\",\"\",CHOOSE(M86,Q95,Q96,Q97,Q98,Q99,Q100,Q101,Q102,Q103,Q104))","v":"SESENTA"},null," Y SEIS","SEIS",null,null,null,null,null,null,{"$f":"IF(W86=\"0\",\"\",CHOOSE(W86,AA95,AA96,AA97,AA98,AA99,AA100,AA101,AA102,AA103,AA104))","v":"CINCUENTA"},null," Y SEIS","SEIS",null,null,null,null,null,null,null,null,{"$f":"IF(AI86=\"0\",\"\",CHOOSE(AI86,AM95,AM96,AM97,AM98,AM99,AM100,AM101,AM102,AM103,AM104))","v":"OCHENTA"},null," Y SEIS","SEIS"]
[null,null,null,null,null,null," Y SIETE","SIETE",null,null,null,null,null,null,null,null," Y SIETE","SIETE",null,null,null,null,null,null,null,null," Y SIETE","SIETE",null,null,null,null,null,null,null,null,null,null," Y SIETE","SIETE"]
[null,null,null,null,{"$f":"IF(E87<=22,E88,IF(E87<=30,CONCATENATE(E90,E88),CONCATENATE(E90,E89)))","v":"VEINTIUN"},null," Y OCHO","OCHO",null,null,null,null,null,null,{"$f":"IF(O87<=22,O88,IF(O87<=30,CONCATENATE(O90,O88),CONCATENATE(O90,O89)))","v":"SESENTA"},null," Y OCHO","OCHO",null,null,null,null,null,null,{"$f":"IF(Y87<=22,Y88,IF(Y87<=30,CONCATENATE(Y90,Y88),CONCATENATE(Y90,Y89)))","v":"CINCUENTA Y CINCO"},null," Y OCHO","OCHO",null,null,null,null,null,null,null,null,{"$f":"IF(AK87<=22,AK88,IF(AK87<=30,CONCATENATE(AK90,AK88),CONCATENATE(AK90,AK89)))","v":"OCHENTA"},null," Y OCHO","OCHO"]
[null,null,null,null,{"$f":"+IF(AND(B10<2000000,B10>999999),\" \",\"ES \")","v":"ES "},null," Y NUEVE","NUEVE",null,null,null,null,null,null,{"$f":"+IF(AND(L10<2000000,L10>999999),\" \",\"ES \")","v":"ES "},null," Y NUEVE","NUEVE",null,null,null,null,null,null,{"$f":"+IF(AND(V10<2000000,V10>999999),\" \",\"ES \")","v":"ES "},null," Y NUEVE","NUEVE",null,null,null,null,null,null,null,null,{"$f":"+IF(AND(AH10<2000000,AH10>999999),\" \",\"ES \")","v":"ES "},null," Y NUEVE","NUEVE"]
[null,null,null,null,null,null,"","DIEZ",null,null,null,null,null,null,null,null,"","DIEZ",null,null,null,null,null,null,null,null,"","DIEZ",null,null,null,null,null,null,null,null,null,null,"","DIEZ"]
[null,null,null,null,null,null,"DIECI","ONCE",null,null,null,null,null,null,null,null,"DIECI","ONCE",null,null,null,null,null,null,null,null,"DIECI","ONCE",null,null,null,null,null,null,null,null,null,null,"DIECI","ONCE"]
[null,null,null,null,null,null,"VEINTI","DOCE",null,null,null,null,null,null,null,null,"VEINTI","DOCE",null,null,null,null,null,null,null,null,"VEINTI","DOCE",null,null,null,null,null,null,null,null,null,null,"VEINTI","DOCE"]
[null,null,null,null,null,null,"TREINTA","TRECE",null,null,null,null,null,null,null,null,"TREINTA","TRECE",null,null,null,null,null,null,null,null,"TREINTA","TRECE",null,null,null,null,null,null,null,null,null,null,"TREINTA","TRECE"]
[null,null,null,null,null,null,"CUARENTA","CATORCE",null,null,null,null,null,null,null,null,"CUARENTA","CATORCE",null,null,null,null,null,null,null,null,"CUARENTA","CATORCE",null,null,null,null,null,null,null,null,null,null,"CUARENTA","CATORCE"]
[null,null,null,null,null,null,"CINCUENTA","QUINCE",null,null,null,null,null,null,null,null,"CINCUENTA","QUINCE",null,null,null,null,null,null,null,null,"CINCUENTA","QUINCE",null,null,null,null,null,null,null,null,null,null,"CINCUENTA","QUINCE"]
[null,null,null,null,null,null,"SESENTA","DIECISEIS",null,null,null,null,null,null,null,null,"SESENTA","DIECISEIS",null,null,null,null,null,null,null,null,"SESENTA","DIECISEIS",null,null,null,null,null,null,null,null,null,null,"SESENTA","DIECISEIS"]
[null,null,null,null,null,null,"SETENTA","DIECISIETE",null,null,null,null,null,null,null,null,"SETENTA","DIECISIETE",null,null,null,null,null,null,null,null,"SETENTA","DIECISIETE",null,null,null,null,null,null,null,null,null,null,"SETENTA","DIECISIETE"]
[null,{"$f":"RIGHT(B$10,9)","v":"21711"},null,null,null,null,"OCHENTA","DIECIOCHO",null,null,null,{"$f":"RIGHT(L$10,9)","v":"6000"},null,null,null,null,"OCHENTA","DIECIOCHO",null,null,null,{"$f":"RIGHT(V$10,9)","v":"55135"},null,null,null,null,"OCHENTA","DIECIOCHO",null,null,null,null,null,{"$f":"RIGHT(AH$10,9)","v":"80000"},null,null,null,null,"OCHENTA","DIECIOCHO"]
[null,{"$f":"LEFT(B102,3)","v":"217"},null,null,null,null,"NOVENTA","DIECINUEVE",null,null,null,{"$f":"LEFT(L102,3)","v":"600"},null,null,null,null,"NOVENTA","DIECINUEVE",null,null,null,{"$f":"LEFT(V102,3)","v":"551"},null,null,null,null,"NOVENTA","DIECINUEVE",null,null,null,null,null,{"$f":"LEFT(AH102,3)","v":"800"},null,null,null,null,"NOVENTA","DIECINUEVE"]
[null,5,null,null,null,null,"","VEINTE",null,null,null,5,null,null,null,null,"","VEINTE",null,null,null,5,null,null,null,null,"","VEINTE",null,null,null,null,null,5,null,null,null,null,"","VEINTE"]
[null,{"$f":"+B103+B104","v":222},null,null," ",null,null,"VEINTIUN",null,null,null,{"$f":"+L103+L104","v":605},null,null," ",null,null,"VEINTIUN",null,null,null,{"$f":"+V103+V104","v":556},null,null," ",null,null,"VEINTIUN",null,null,null,null,null,{"$f":"+AH103+AH104","v":805},null,null," ",null,null,"VEINTIUN"]
[null,null,{"$f":"IF(B103<100,10,LEFT(RIGHT(B$10,9),1))","v":"2"},{"$f":"IF(B105=105,\"CIEN\",IF(B109=5,\"\",CHOOSE(C106,E106,E107,E108,E109,E110,E111,E112,E113,E114,E115)))","v":"DOSCIENTOS "},"CIENTO ",null,null,null,null,null,null,null,{"$f":"IF(L103<100,10,LEFT(RIGHT(L$10,9),1))","v":"6"},{"$f":"IF(L105=105,\"CIEN\",IF(L109=5,\"\",CHOOSE(M106,O106,O107,O108,O109,O110,O111,O112,O113,O114,O115)))","v":"SEISCIENTOS "},"CIENTO ",null,null,null,null,null,null,null,{"$f":"IF(V103<100,10,LEFT(RIGHT(V$10,9),1))","v":"5"},{"$f":"IF(V105=105,\"CIEN\",IF(V109=5,\"\",CHOOSE(W106,Y106,Y107,Y108,Y109,Y110,Y111,Y112,Y113,Y114,Y115)))","v":"QUINIENTOS "},"CIENTO ",null,null,null,null,null,null,null,null,null,{"$f":"IF(AH103<100,10,LEFT(RIGHT(AH$10,9),1))","v":"8"},{"$f":"IF(AH105=105,\"CIEN\",IF(AH109=5,\"\",CHOOSE(AI106,AK106,AK107,AK108,AK109,AK110,AK111,AK112,AK113,AK114,AK115)))","v":"OCHOCIENTOS "},"CIENTO "]
[null,{"$f":"+C106","v":"2"},null,null,"DOSCIENTOS ",null,null,null,null,null,null,{"$f":"+M106","v":"6"},null,null,"DOSCIENTOS ",null,null,null,null,null,null,{"$f":"+W106","v":"5"},null,null,"DOSCIENTOS ",null,null,null,null,null,null,null,null,{"$f":"+AI106","v":"8"},null,null,"DOSCIENTOS "]
[null,5,null,null,"TRECIENTOS ",null,null,null,null,null,null,5,null,null,"TRECIENTOS ",null,null,null,null,null,null,5,null,null,"TRECIENTOS ",null,null,null,null,null,null,null,null,5,null,null,"TRECIENTOS "]
[null,{"$f":"+B108+B107","v":7},null,null,"CUATROCIENTOS ",null,null,null,null,null,null,{"$f":"+L108+L107","v":11},null,null,"CUATROCIENTOS ",null,null,null,null,null,null,{"$f":"+V108+V107","v":10},null,null,"CUATROCIENTOS ",null,null,null,null,null,null,null,null,{"$f":"+AH108+AH107","v":13},null,null,"CUATROCIENTOS "]
[null,null,null,null,"QUINIENTOS ",null,null,null,null,null,null,null,null,null,"QUINIENTOS ",null,null,null,null,null,null,null,null,null,"QUINIENTOS ",null,null,null,null,null,null,null,null,null,null,null,"QUINIENTOS "]
[null,null,null,null,"SEISCIENTOS ",null,null,null,null,null,null,null,null,null,"SEISCIENTOS ",null,null,null,null,null,null,null,null,null,"SEISCIENTOS ",null,null,null,null,null,null,null,null,null,null,null,"SEISCIENTOS "]
[null,null,null,null,"SETECIENTOS ",null,null,null,null,null,null,null,null,null,"SETECIENTOS ",null,null,null,null,null,null,null,null,null,"SETECIENTOS ",null,null,null,null,null,null,null,null,null,null,null,"SETECIENTOS "]
[null,null,null,null,"OCHOCIENTOS ",null,null,null,null,null,null,null,null,null,"OCHOCIENTOS ",null,null,null,null,null,null,null,null,null,"OCHOCIENTOS ",null,null,null,null,null,null,null,null,null,null,null,"OCHOCIENTOS "]
[null,null,null,null,"NOVECIENTOS ",null,null,null,null,null,null,null,null,null,"NOVECIENTOS ",null,null,null,null,null,null,null,null,null,"NOVECIENTOS ",null,null,null,null,null,null,null,null,null,null,null,"NOVECIENTOS "]
[]
[null,null,null,null,null,"OCHOCIENTOS ",null,null,null,null,null,null,null,null,null,"OCHOCIENTOS ",null,null,null,null,null,null,null,null,null,"OCHOCIENTOS ",null,null,null,null,null,null,null,null,null,null,null,"OCHOCIENTOS "]
[null,null,null,null,null,"OCHOCIENTOS ",null,null,null,null,null,null,null,null,null,"OCHOCIENTOS ",null,null,null,null,null,null,null,null,null,"OCHOCIENTOS ",null,null,null,null,null,null,null,null,null,null,null,"OCHOCIENTOS "]
[]
[]
[]
[]
[]
[]
[]
[]
[]
[]
[]
[]
[]
[]
[]
[]
[]
[]
[]
[]
[]
[]
[]
[null,12345678,null,null,null,null,null,null,null,null,null,12345678,null,null,null,null,null,null,null,null,null,12345678,null,null,null,null,null,null,null,null,null,null,null,12345678]
[null,{"$f":"RIGHT(#REF!,2)","v":{"$error":"#REF!"}},null,null,null,null,null,null,null,null,null,{"$f":"RIGHT(#REF!,2)","v":{"$error":"#REF!"}},null,null,null,null,null,null,null,null,null,{"$f":"RIGHT(#REF!,2)","v":{"$error":"#REF!"}},null,null,null,null,null,null,null,null,null,null,null,{"$f":"RIGHT(#REF!,2)","v":{"$error":"#REF!"}}]
[null,{"$f":"LEFT(RIGHT(#REF!,3),1)","v":{"$error":"#REF!"}},null,null,null,null,null,null,null,null,null,{"$f":"LEFT(RIGHT(#REF!,3),1)","v":{"$error":"#REF!"}},null,null,null,null,null,null,null,null,null,{"$f":"LEFT(RIGHT(#REF!,3),1)","v":{"$error":"#REF!"}},null,null,null,null,null,null,null,null,null,null,null,{"$f":"LEFT(RIGHT(#REF!,3),1)","v":{"$error":"#REF!"}}]
[null,{"$f":"LEFT(RIGHT(#REF!,5),2)","v":{"$error":"#REF!"}},null,null,null,null,null,null,null,null,null,{"$f":"LEFT(RIGHT(#REF!,5),2)","v":{"$error":"#REF!"}},null,null,null,null,null,null,null,null,null,{"$f":"LEFT(RIGHT(#REF!,5),2)","v":{"$error":"#REF!"}},null,null,null,null,null,null,null,null,null,null,null,{"$f":"LEFT(RIGHT(#REF!,5),2)","v":{"$error":"#REF!"}}]
[null,{"$f":"LEFT(RIGHT(#REF!,6),1)","v":{"$error":"#REF!"}},null,null,null,null,null,null,null,null,null,{"$f":"LEFT(RIGHT(#REF!,6),1)","v":{"$error":"#REF!"}},null,null,null,null,null,null,null,null,null,{"$f":"LEFT(RIGHT(#REF!,6),1)","v":{"$error":"#REF!"}},null,null,null,null,null,null,null,null,null,null,null,{"$f":"LEFT(RIGHT(#REF!,6),1)","v":{"$error":"#REF!"}}]
[null,{"$f":"LEFT(RIGHT(#REF!,8),2)","v":{"$error":"#REF!"}},null,null,null,null,null,null,null,null,null,{"$f":"LEFT(RIGHT(#REF!,8),2)","v":{"$error":"#REF!"}},null,null,null,null,null,null,null,null,null,{"$f":"LEFT(RIGHT(#REF!,8),2)","v":{"$error":"#REF!"}},null,null,null,null,null,null,null,null,null,null,null,{"$f":"LEFT(RIGHT(#REF!,8),2)","v":{"$error":"#REF!"}}]

{"sheet":"SERV","index":1,"n_rows":22,"n_cols":12,"rows_kept":22,"cut":false,"hidden":false,"merged":[]}
[]
[null,"TIPO",null,"DESCRIPCION","PORCENTAJE MONTO","COMISION","PENALIZACION","AL CLIENTE","FIN"]
[null,1,"EN GENERAL","EN ASESORIA Y GESTION PARA REALIZAR TRAMITES",0.3,{"$f":"+REG!$C$16*E3+1500","v":24554.042999999998},{"$f":"+REG!$C$16*15%","v":11527.021499999999},{"$f":"+REG!$C$16-(+REG!$C$16*0.2)-SERV!F3","v":36923.404999999999}]
[null,2,"MEJORA, REPARA Y RENUEVA","EN ASESORIA EN MANTENIMIENTO, REMODELACION Y PRESUPUESTO",0.2,{"$f":"+REG!$C$16*E4","v":15369.362000000001},6000,{"$f":"+REG!C16-(REG!C16*0.2)","v":61477.447999999997},null,null,"EMPRESA ","ADMINISTRADORA EN REMODELACION COMERCIAL DE MEXICO SAS DE C.V."]
[null,3,"MEJORA, REPARA Y RENUEVA","EN ASESORIA EN MANTENIMIENTO, REMODELACION Y PRESUPUESTO",0.2,{"$f":"+REG!$C$16*E5+2000","v":17369.362000000001},6000,{"$f":"+REG!C16-(REG!C16*0.2+2000)","v":59477.447999999997},null,null,"RFC","ARM220824UJ7"]
[null,4,"MEJORA, REPARA Y RENUEVA","EN ASESORIA EN MANTENIMIENTO, REMODELACION Y PRESUPUESTO",0.25,{"$f":"+REG!$C$16*E6","v":19211.702499999999},6000,{"$f":"+REG!C16-(REG!C16*0.25)","v":57635.107499999998},null,null,"REPRESENTAD","ARMANDO CORDOVA MARTINEZ"]
[null,5,"MEJORA, REPARA Y RENUEVA","EN ASESORIA EN MANTENIMIENTO, REMODELACION Y PRESUPUESTO",0.25,{"$f":"+REG!$C$16*E7+2500","v":21711.702499999999},6000,{"$f":"+REG!C16-(REG!C16*0.25+2500)","v":55135.107499999998},null,null,"DOMICILIO","AV. DEL ROSAL 245 – A MOLINO DE ROSAS, ALVARO OBREGON C.P. 01470 CDMX"]
[null,6,"FINANC MOD 40","ASESORIA Y GESTION EN MATERIA DE MOD 40, CON LA FINALIDAD QUE AL MOMENTO DE SU RETIRO TENGA LA LIQUIDEZ SUFICIENTE PARA VIVIR DE MANERA DIGNA",0.3,{"$f":"+REG!$C$16*E8+1500","v":24554.042999999998},{"$f":"+REG!$C$16*15%","v":11527.021499999999},{"$f":"+REG!$C$16*E8+1500","v":24554.042999999998},null,null,"BANCO","BBVA BANCOMER."]
[null,7,"PREST JUB Y PENS","GESTION PARA REALIZAR CREDITO Y PRESTAMOS PARA PESONAL JUBILADO Y/O PENSIONADO",0.3,{"$f":"+REG!$C$16*E9+1500","v":24554.042999999998},{"$f":"+REG!$C$16*15%","v":11527.021499999999},30000,null,null,"CUENTA A DEP","046 974 88 22 CLABE INTERBANCARIA 012 180 00469748822 4"]
[null,8,"IMSS ALTA","GESTION TRAMITAR ANTE EL IMSS, CON LA FINALIDAD QUE OBTENGA LOS BENEFICIOS QUE LA INSTITUCION OTORGA",3500,{"$f":"+E10","v":3500},{"$f":"+REG!$C$16*15%","v":11527.021499999999},0]
[null,9,"AYUDA DE DESEMPLEO","OTRO",0.3,{"$f":"+K15*E11","v":977.12999999999988},{"$f":"+REG!$C$16*15%","v":11527.021499999999},{"$f":"+K15-F11","v":2279.9700000000003}]
[null,10,"OTRO","OTRO",0.3,{"$f":"+REG!$C$16*E12+1500","v":24554.042999999998},{"$f":"+REG!$C$16*15%","v":11527.021499999999},{"$f":"+REG!$C$16*E12+1500","v":24554.042999999998},null,null,"CALCULO","AYUDA DESEMPLEO"]
[null,11,"VARIOS","VARIOS",null,null,null,null,null,null,108.57,"UMA DIARIA"]
[null,12,"PENSION","ASESORIA Y GESTION EN MATERIA DE PENSION, CON LA FINALIDAD QUE AL MOMENTO DE SU RETIRO TOME LA MEJOR DECISIÓN PARA VIVIR DIGNAMENTE",0.3,{"$f":"+REG!$C$16*E14+1500","v":24554.042999999998},{"$f":"+REG!$C$16*15%","v":11527.021499999999},{"$f":"+REG!$C$16*E14+1500","v":24554.042999999998}]
[null,13,"CONTRATO DE CONTABILIDAD","PENDIENTE A ENTREGAR ",null,null,null,null,null,null,{"$f":"+K13*30","v":3257.1},"*30 DIAS"]
[null,14]
[null,15]
[null,16]
[null,17]
[null,18]
[null,19]
[null,20]

{"sheet":"REG","index":2,"n_rows":27,"n_cols":3,"rows_kept":27,"cut":false,"hidden":false,"merged":[]}
[]
[1,"EMPRESA ","ADMINISTRADORA EN REMODELACION COMERCIAL DE MEXICO SAS DE C.V."]
[null,"RFC","ARM220824UJ7"]
[null,"REPRESENTAD","ARMANDO CORDOVA MARTINEZ"]
[null,"DOMICILIO","AV. DEL ROSAL 245 – A MOLINO DE ROSAS, ALVARO OBREGON C.P. 01470 CDMX"]
[null,"BANCO","BBVA BANCOMER."]
[null,"CUENTA A DEP","046 974 88 22 CLABE INTERBANCARIA 012 180 00469748822 4"]
[null,"SERVICIOS POR",5]
[null,"TIPO DE SERVICIO",{"$f":"VLOOKUP($C$8,SERVICIOS,2)","v":"MEJORA, REPARA Y RENUEVA"}]
[null,"descripcion de servicio",{"$f":"VLOOKUP($C$8,SERVICIOS,3)","v":"EN ASESORIA EN MANTENIMIENTO, REMODELACION Y PRESUPUESTO"}]
[null,"NOMBRE CLIENTE","JOSE ANTONIO PEREZ FLORES"]
[null,"CURP","PEFA910304HDFRLN06"]
[null,"CLAVE ELECTOR","PRFLAN91030409H700"]
[null,"DOMICILIO","CELAYA 8 PROGRESO ATIZAPAN C.P. 01080 ALVARO OBREGON, CDMX "]
[null,"FECHA",{"$f":"TODAY()","v":"2026-04-09"}]
[null,"IMPORTE CREDITO",76846.81]
[null,"MONTO",{"$f":"VLOOKUP($C$8,SERVICIOS,5)","v":21711.702499999999}]
[null,"IMPORTE LETRA",{"$f":"+LETRA!B3","v":"VEINTIUN MIL SETECIENTOS ONCE PESOS 70/100 M.N."}]
[null,"IMPORTE",{"$f":"VLOOKUP($C$8,SERVICIOS,6)","v":6000}]
[null,"IMPORTE LETRA",{"$f":"+LETRA!L3","v":"SEIS MIL  PESOS 00/100 M.N."}]
[null,"AL CLIENTE",{"$f":"VLOOKUP($C$8,SERVICIOS,7)","v":55135.107499999998}]
[null,"IMPORTE LETRA",{"$f":"+LETRA!V3","v":"CINCUENTA Y CINCO MIL CIENTO TREINTA Y CINCO PESOS 11/100 M.N."}]
[]
[]
[null,null,"COMPROBACION:"]
[null,"COMISION",{"$f":"+C16*0.2+2500","v":17869.362000000001}]
[null,"DEPOSITO FINAL PARA CLIENTE",{"$f":"+C16-C26","v":58977.447999999997}]

{"sheet":"CTRL","index":3,"n_rows":578,"n_cols":34,"rows_kept":578,"cut":false,"hidden":false,"merged":[]}
[]
[null,"EMPRESA ","RFC","REPRESENTAD","DOMICILIO","BANCO","CUENTA A DEP","SERVICIO","TIPO DE SERVICIO","descripcion de servicio","NOMBRE CLIENTE","CURP","CLAVE ELECTOR","DOMICILIO2","FECHA","IMPORTE CREDITO","MONTO","IMPORTE LETRA","IMPORTE INDEM","IMPORTE LETRA PENALIZACION","AL CLIENTE","IMPORTE LETRA4","FIN","Columna1","Columna2","Columna3","Columna4","Columna5","Columna6","Columna7","Columna8","Columna9","Columna10","Columna11"]
[1,{"$f":"+REG!C2","v":"ADMINISTRADORA EN REMODELACION COMERCIAL DE MEXICO SAS DE C.V."},{"$f":"+REG!C3","v":"ARM220824UJ7"},{"$f":"+REG!C4","v":"ARMANDO CORDOVA MARTINEZ"},{"$f":"+REG!$C5","v":"AV. DEL ROSAL 245 – A MOLINO DE ROSAS, ALVARO OBREGON C.P. 01470 CDMX"},{"$f":"+REG!$C6","v":"BBVA BANCOMER."},{"$f":"+REG!$C7","v":"046 974 88 22 CLABE INTERBANCARIA 012 180 00469748822 4"},{"$f":"+REG!$C8","v":5},{"$f":"+REG!$C9","v":"MEJORA, REPARA Y RENUEVA"},{"$f":"+REG!$C10","v":"EN ASESORIA EN MANTENIMIENTO, REMODELACION Y PRESUPUESTO"},{"$f":"+REG!$C11","v":"JOSE ANTONIO PEREZ FLORES"},{"$f":"+REG!$C12","v":"PEFA910304HDFRLN06"},{"$f":"+REG!$C13","v":"PRFLAN91030409H700"},{"$f":"+REG!$C14","v":"CELAYA 8 PROGRESO ATIZAPAN C.P. 01080 ALVARO OBREGON, CDMX "},{"$f":"+REG!$C15","v":"2026-04-09"},{"$f":"+REG!$C16","v":76846.81},{"$f":"+REG!$C17","v":21711.702499999999},{"$f":"+REG!$C18","v":"VEINTIUN MIL SETECIENTOS ONCE PESOS 70/100 M.N."},{"$f":"+REG!$C19","v":6000},{"$f":"+REG!$C20","v":"SEIS MIL  PESOS 00/100 M.N."},{"$f":"+REG!$C21","v":55135.107499999998},{"$f":"+REG!$C22","v":"CINCUENTA Y CINCO MIL CIENTO TREINTA Y CINCO PESOS 11/100 M.N."}]
[{"$f":"+A3+1","v":2}]
[3]
[4]
[5]
[6]
[7]
[8]
[9]
[10]
[{"$f":"+A12+1","v":11}]
[12]
[13]
[14]
[15]
[16]
[17]
[18]
[19]
[20]
[21,null,null,null,null,null,null,null,null,null,null,null,null,null,null,null,null,{"$f":"+REG!$C37","v":0}]
[22,null,null,null,null,null,null,null,null,null,null,null,null,null,null,null,null,{"$f":"+REG!$C38","v":0}]
[23]
[24]
[25]
[26]
[27]
[28]
[29]
[30]
[31]
[32]
[33]
[34]
[35]
[36]
[37]
[38]
[39]
[40]
[41]
[42]
[43]
[44]
[45]
[46]
[47]
[48]
[49]
[50]
[51]
[52]
[53]
[54]
[{"$f":"+A56+1","v":55}]
[56]
[57]
[58]
[59]
[60]
[61]
[62]
[63]
[64]
[65]
[66]
[67]
[68]
[69]
[70]
[71]
[72]
[73]
[74]
[75]
[76]
[77]
[78]
[79]
[80]
[81]
[82]
[83]
[84]
[85]
[86]
[87]
[88]
[89]
[90]
[91]
[92]
[93]
[94]
[95]
[96]
[97]
[98]
[99]
[100]
[101]
[102]
[103]
[104]
[105]
[106]
[107]
[108]
[109]
[110]
[111]
[112]
[113]
[114]
[115]
[116]
[117]
[118]
[{"$f":"+A120+1","v":119}]
[120]
[121]
[122]
[123]
[124]
[125]
[126]
[127]
[128]
[129]
[130]
[131]
[132]
[133]
[134]
[135]
[136]
[137]
[138]
[139]
[140]
[141]
[142]
[143]
[144]
[145]
[146]
[147]
[148]
[149]
[150]
[151]
[152]
[153]
[154]
[155]
[156]
[157]
[158]
[159]
[160]
[161]
[162]
[163]
[164]
[165]
[166]
[167]
[168]
[169]
[170]
[171]
[172]
[173]
[174]
[175]
[176]
[177]
[178]
[179]
[180]
[181]
[182]
[{"$f":"+A184+1","v":183}]
[184]
[185]
[186]
[187]
[188]
[189]
[190]
[191]
[192]
[193]
[194]
[195]
[196]
[197]
[198]
[199]
[200]
[201]
[202]
[203]
[204]
[205]
[206]
[207]
[208]
[209]
[210]
[211]
[212]
[213]
[214]
[215]
[216]
[217]
[218]
[219]
[220]
[221]
[222]
[223]
[224]
[225]
[226]
[227]
[228]
[229]
[230]
[231]
[232]
[233]
[234]
[235]
[236]
[237]
[238]
[239]
[240]
[241]
[242]
[243]
[244]
[245]
[246]
[{"$f":"+A248+1","v":247}]
[248]
[249]
[250]
[251]
[252]
[253]
[254]
[255]
[256]
[257]
[258]
[259]
[260]
[261]
[262]
[263]
[264]
[265]
[266]
[267]
[268]
[269]
[270]
[271]
[272]
[273]
[274]
[275]
[276]
[277]
[278]
[279]
[280]
[281]
[282]
[283]
[284]
[285]
[286]
[287]
[288]
[289]
[290]
[291]
[292]
[293]
[294]
[295]
[296]
[297]
[298]
[299]
[300]
[301]
[302]
[303]
[304]
[305]
[306]
[307]
[308]
[309]
[310]
[{"$f":"+A312+1","v":311}]
[312]
[313]
[314]
[315]
[316]
[317]
[318]
[319]
[320]
[321]
[322]
[323]
[324]
[325]
[326]
[327]
[328]
[329]
[330]
[331]
[332]
[333]
[334]
[335]
[336]
[337]
[338]
[339]
[340]
[341]
[342]
[343]
[344]
[345]
[346]
[347]
[348]
[349]
[350]
[351]
[352]
[353]
[354]
[355]
[356]
[357]
[358]
[359]
[360]
[361]
[362]
[363]
[364]
[365]
[366]
[367]
[368]
[369]
[370]
[371]
[372]
[373]
[374]
[{"$f":"+A376+1","v":375}]
[376]
[377]
[378]
[379]
[380]
[381]
[382]
[383]
[384]
[385]
[386]
[387]
[388]
[389]
[390]
[391]
[392]
[393]
[394]
[395]
[396]
[397]
[398]
[399]
[400]
[401]
[402]
[403]
[404]
[405]
[406]
[407]
[408]
[409]
[410]
[411]
[412]
[413]
[414]
[415]
[416]
[417]
[418]
[419]
[420]
[421]
[422]
[423]
[424]
[425]
[426]
[427]
[428]
[429]
[430]
[431]
[432]
[433]
[434]
[435]
[436]
[437]
[438]
[{"$f":"+A440+1","v":439}]
[440]
[441]
[442]
[443]
[444]
[445]
[446]
[447]
[448]
[449]
[450]
[451]
[452]
[453]
[454]
[455]
[456]
[457]
[458]
[459]
[460]
[461]
[462]
[463]
[464]
[465]
[466]
[467]
[468]
[469]
[470]
[471]
[472]
[473]
[474]
[475]
[476]
[477]
[478]
[479]
[480]
[481]
[482]
[483]
[484]
[485]
[486]
[487]
[488]
[489]
[490]
[491]
[492]
[493]
[494]
[495]
[496]
[497]
[498]
[499]
[500]
[501]
[502]
[{"$f":"+A504+1","v":503}]
[504]
[505]
[506]
[507]
[508]
[509]
[510]
[511]
[512]
[513]
[514]
[515]
[516]
[517]
[518]
[519]
[520]
[521]
[522]
[523]
[524]
[525]
[526]
[527]
[528]
[529]
[530]
[531]
[532]
[533]
[534]
[535]
[536]
[537]
[538]
[539]
[540]
[541]
[542]
[543]
[544]
[545]
[546]
[547]
[548]
[549]
[550]
[551]
[552]
[553]
[554]
[555]
[556]
[557]
[558]
[559]
[560]
[561]
[562]
[563]
[564]
[565]
[566]
[{"$f":"+A568+1","v":567}]
[568]
[569]
[570]
[571]
[572]
[573]
[574]
[575]
[576]

{"sheet":"REC","index":4,"n_rows":146,"n_cols":21,"rows_kept":146,"cut":false,"hidden":false,"merged":[[40,1,40,3],[3,1,3,3],[6,2,6,3],[9,2,9,3],[11,1,11,2],[12,2,12,3],[18,1,18,3],[25,1,25,3],[28,2,28,3],[31,2,31,3],[33,1,33,2],[34,2,34,3]]}
[null,null,null,null,null,null,null,null,null,null,null,null,null,null,null,null,null,null,null,{"$f":"CONCATENATE(P106,T2)","v":"CUATROCIENTOS CUARENTA Y DOS MILLONES CUATROCIENTOS CUARENTA Y DOS MIL CUATROCIENTOS VEINTE PESOS 00/100 M.N."}]
[null,null,"CIUDAD DE MEXICO A ",{"$f":"TODAY()","v":"2026-04-09"},null,null,null,null,null,null,null,null,null,null,null,null,null,null,null,{"$f":"CONCATENATE(Q92,\" MILLON\",Q93,T3)","v":"CUARENTA Y DOS MILLONES CUATROCIENTOS CUARENTA Y DOS MIL CUATROCIENTOS VEINTE PESOS 00/100 M.N."}]
[null,null,null,null,null,null,null,null,null,null,null,null,null,{"$f":"IF(N10<=99,T6,IF(N10<=999,T5,IF(N10<=99999,T4,IF(N10<=999999,T3,IF(N10<=99999999,T2,T1)))))","v":"CUATROCIENTOS VEINTE PESOS 00/100 M.N."},null,null,null,null,null,{"$f":"CONCATENATE(P71,T4)","v":"CUATROCIENTOS CUARENTA Y DOS MIL CUATROCIENTOS VEINTE PESOS 00/100 M.N."}]
[null,"RECIBO DE PAGO",null,null,null,null,null,null,null,null,null,null,null,null,null,null,null,null,null,{"$f":"CONCATENATE(Q57,T8,T5)","v":"CUARENTA Y DOS MIL CUATROCIENTOS VEINTE PESOS 00/100 M.N."}]
[null,null,null,null,null,null,null,null,null,null,null,null,null,null,null,null,null,null,null,{"$f":"CONCATENATE(P37,T6)","v":"CUATROCIENTOS VEINTE PESOS 00/100 M.N."}]
[null,1,"FOLIO",1,null,null,null,null,null,null,null,null,null,null,null,null,null,null,null,{"$f":"CONCATENATE(Q17,T7,U7)","v":"VEINTE PESOS 00/100 M.N."}]
[null,"BENEFICIARIO (A)","ANDREA MEJIA BARCENAS",null,null,null,null,null,null,null,null,null,null,null,null,null,null,null,null,{"$f":"IF(N10<=1,\" PESO \",\" PESOS \")","v":" PESOS "},{"$f":"CONCATENATE(RIGHT(O9,2),\"/100 M.N.\")","v":"00/100 M.N."}]
[null,"CURP","MEBA930411MDFJRN09",null,null,null,null,null,null,null,null,null,null,null,null,null,null,null,null,{"$f":"IF(N10<=999999,\" MIL \",IF(RIGHT(N10,6)=\"000000\",\" DE \",IF(LEFT(RIGHT(N10,6),3)=\"000\",\" \",\" MIL \")))","v":" MIL "}]
[null,"NUM CLIENTE",30119309752,null,null,null,null,null,null,null,null,null,null,{"$f":"+D12","v":420},{"$f":"DOLLAR(N9,2)","v":"$420.00"}]
[null,"CONCEPTO","SERVICION PROPORCIONAL 7 DIAS MES DE OCTUBRE 2021",null,null,null,null,null,null,null,null,null,null,{"$f":"TRUNC(N9,0)","v":420},{"$f":"IF(+LEFT(RIGHT(N$10,2),2)<20,LEFT(RIGHT(N$10,2),2),RIGHT(N$10,1))","v":"0"},{"$f":"IF(Q12<=22,Q10,Q11)","v":"20"},{"$f":"RIGHT(N10,2)","v":"20"},null," Y UN","UN"]
[null,null,null,null,null,null,null,null,null,null,null,null,null,{"$f":"+O10","v":"0"},{"$f":"IF(+LEFT(RIGHT(N$10,2),2)<20,LEFT(RIGHT(N$10,2),2),LEFT(RIGHT(N$10,2),1))","v":"2"},{"$f":"+P10","v":"20"},{"$f":"RIGHT(N10,1)","v":"0"},null," Y DOS","DOS"]
[null,"RECIBO POR ",null,420,null,null,null,null,null,null,null,null,null,5,{"$f":"5+O11","v":7},5,{"$f":"1+Q10","v":21},null," Y TRES","TRES"]
[null,"IMPORTE CON LETRA:",{"$f":"+N3","v":"CUATROCIENTOS VEINTE PESOS 00/100 M.N."},null,null,null,null,null,null,null,null,null,null,{"$f":"+N12+N11+O11","v":7},null,{"$f":"+P12+P11","v":25},{"$f":"IF(N13=5,\"\",CHOOSE(P10,T10,T11,T12,T13,T14,T15,T16,T17,T18,T19,T20,T21,T22,T23,T24,T25,T26,T27,T28,T29,T30))","v":"VEINTE"},null," Y CUATRO","CUATRO"]
[null,null,null,null,null,null,null,null,null,null,null,null,null,null,null,null,{"$f":"IF(P13=5,\"\",CHOOSE(P10,S10,S11,S12,S13,S14,S15,S16,S17,S18,S19))","v":{"$error":"#VALUE!"}},null," Y CINCO","CINCO"]
[null,null,null,null,null,null,null,null,null,null,null,null,null,null,null,null,{"$f":"CHOOSE(O11,S20,S21,S22,S23,S24,S25,S26,S27,S28,S29)","v":"VEINTI"},null," Y SEIS","SEIS"]
[null,null,null,null,null,null,null,null,null,null,null,null,null,null,null,null,null,null," Y SIETE","SIETE"]
[null,null,null,null,null,null,null,null,null,null,null,null,null,null,null,null,{"$f":"IF(Q12<=22,Q13,IF(Q12<=30,CONCATENATE(Q15,Q13),CONCATENATE(Q15,Q14)))","v":"VEINTE"},null," Y OCHO","OCHO"]
[null,null,"ARMANDO CORDOVA MARTINEZ",null,null,null,null,null,null,null,null,null,null,null,null,null,null,null," Y NUEVE","NUEVE"]
[null,"RECIBI DE CONFORMIDAD LA CANTIDAD MENCIONADA",null,null,null,null,null,null,null,null,null,null,null,null,null,null,null,null,"","DIEZ"]
[null,null,null,null,null,null,null,null,null,null,null,null,null,null,null,null,null,null,"DIECI","ONCE"]
[null,null,null,null,null,null,null,null,null,null,null,null,null,null,null,null,null,null,"VEINTI","DOCE"]
[null,null,null,null,null,null,null,null,null,null,null,null,null,null,null,null,null,null,"TREINTA","TRECE"]
[null,null,null,null,null,null,null,null,null,null,null,null,null,null,null,null,null,null,"CUARENTA","CATORCE"]
[null,null,"CIUDAD DE MEXICO A ",{"$f":"+D2","v":"2026-04-09"},null,null,null,null,null,null,null,null,null,null,null,null,null,null,"CINCUENTA","QUINCE"]
[null,null,null,null,null,null,null,null,null,null,null,null,null,null,null,null,null,null,"SESENTA","DIECISEIS"]
[null,"RECIBO DE PAGO",null,null,null,null,null,null,null,null,null,null,null,null,null,null,null,null,"SETENTA","DIECISIETE"]
[null,null,null,null,null,null,null,null,null,null,null,null,null,null,null,null,null,null,"OCHENTA","DIECIOCHO"]
[null,2,"FOLIO",{"$f":"+D6","v":1},null,null,null,null,null,null,null,null,null,null,null,null,null,null,"NOVENTA","DIECINUEVE"]
[null,"BENEFICIARIO (A)",{"$f":"+C7","v":"ANDREA MEJIA BARCENAS"},null,null,null,null,null,null,null,null,null,null,null,null,null,null,null,"","VEINTE"]
[null,"CURP",{"$f":"+C8","v":"MEBA930411MDFJRN09"},null,null,null,null,null,null,null,null,null,null,null,null,null,null,null,null,"VEINTIUN"]
[null,"NUM CLIENTE",{"$f":"+C9","v":30119309752}]
[null,"CONCEPTO",{"$f":"+C10","v":"SERVICION PROPORCIONAL 7 DIAS MES DE OCTUBRE 2021"}]
[]
[null,"RECIBO POR ",null,{"$f":"+D12","v":420},null,null,null,null,null,null,null,null,null,{"$f":"RIGHT(N10,3)","v":"420"}]
[null,"IMPORTE CON LETRA:",{"$f":"+C13","v":"CUATROCIENTOS VEINTE PESOS 00/100 M.N."},null,null,null,null,null,null,null,null,null,null,5]
[null,null,null,null,null,null,null,null,null,null,null,null,null,{"$f":"+N34+N35","v":425}]
[null,null,null,null,null,null,null,null,null,null,null,null,null,null,{"$f":"IF(N10<100,10,LEFT(RIGHT(N$10,3),1))","v":"4"},{"$f":"IF(N36=105,\"CIEN\",IF(N40=5,\"\",CHOOSE(O37,Q37,Q38,Q39,Q40,Q41,Q42,Q43,Q44,Q45,Q50)))","v":"CUATROCIENTOS "},"CIENTO "]
[null,null,null,null,null,null,null,null,null,null,null,null,null,{"$f":"+O37","v":"4"},null,null,"DOSCIENTOS "]
[null,null,null,null,null,null,null,null,null,null,null,null,null,5,null,null,"TRECIENTOS "]
[null,null,"ARMANDO CORDOVA MARTINEZ",null,null,null,null,null,null,null,null,null,null,{"$f":"+N39+N38","v":9},null,null,"CUATROCIENTOS "]
[null,"RECIBI DE CONFORMIDAD LA CANTIDAD MENCIONADA",null,null,null,null,null,null,null,null,null,null,null,null,null,null,"QUINIENTOS "]
[null,null,null,null,null,null,null,null,null,null,null,null,null,null,null,null,"SEISCIENTOS "]
[null,null,null,null,null,null,null,null,null,null,null,null,null,null,null,null,"SETECIENTOS "]
[null,null,null,null,null,null,null,null,null,null,null,null,null,null,null,null,"OCHOCIENTOS "]
[null,null,null,null,null,null,null,null,null,null,null,null,null,null,null,null,"NOVECIENTOS "]
[]
[]
[]
[null,null,null,null,null,null,null,null,null,null,null,null,null,{"$f":"RIGHT(N10,5)","v":"420"},{"$f":"+N49+1-1","v":420}]
[null,null,null,null,null,null,null,null,null,null,null,null,null,{"$f":"IF(AND(O49<10000,O49>999),LEFT(O49,1),LEFT(N49,2))","v":"42"},{"$f":"IF(+LEFT(RIGHT(N$50,2),2)<20,LEFT(RIGHT(N$50,2),2),RIGHT(N$50,1))","v":"2"},{"$f":"IF(Q52<=22,Q50,Q51)","v":"2"},{"$f":"RIGHT(N50,2)","v":"42"},null," Y UN","UN"]
[null,null,null,null,null,null,null,null,null,null,null,null,null,{"$f":"+O50","v":"2"},{"$f":"IF(+LEFT(RIGHT(N$50,2),2)<20,LEFT(RIGHT(N$50,2),2),LEFT(RIGHT(N$50,2),1))","v":"4"},{"$f":"+P50","v":"2"},{"$f":"RIGHT(N50,1)","v":"2"},null," Y DOS","DOS"]
[null,null,null,null,null,null,null,null,null,null,null,null,null,5,{"$f":"5+O51","v":9},5,{"$f":"1+Q50","v":43},null," Y TRES","TRES"]
[null,null,null,null,null,null,null,null,null,null,null,null,null,{"$f":"+N52+N51+O51","v":11},null,{"$f":"+P52+P51","v":7},{"$f":"IF(N53=5,\"\",CHOOSE(P50,T50,T51,T52,T53,T54,T55,T56,T57,T58,T59,T60,T61,T62,T63,T64,T65,T66,T67,T68,T69,T70))","v":"DOS"},null," Y CUATRO","CUATRO"]
[null,null,null,null,null,null,null,null,null,null,null,null,null,null,null,null,{"$f":"IF(P53=5,\"\",CHOOSE(P50,S50,S51,S52,S53,S54,S55,S56,S57,S58,S59))","v":" Y DOS"},null," Y CINCO","CINCO"]
[null,null,null,null,null,null,null,null,null,null,null,null,null,null,null,null,{"$f":"CHOOSE(O51,S60,S61,S62,S63,S64,S65,S66,S67,S68,S69)","v":"CUARENTA"},null," Y SEIS","SEIS"]
[null,null,null,null,null,null,null,null,null,null,null,null,null,null,null,null,null,null," Y SIETE","SIETE"]
[null,null,null,null,null,null,null,null,null,null,null,null,null,null,null,null,{"$f":"IF(AND(O49>=1000,O49<2000,N10<99000),\"\",IF(Q52<=22,Q53,IF(Q52<=30,CONCATENATE(Q55,Q53),CONCATENATE(Q55,Q54))))","v":"CUARENTA Y DOS"},null," Y OCHO","OCHO"]
[null,null,null,null,null,null,null,null,null,null,null,null,null,null,null,null,null,null," Y NUEVE","NUEVE"]
[null,null,null,null,null,null,null,null,null,null,null,null,null,null,null,null,null,null,"","DIEZ"]
[null,null,null,null,null,null,null,null,null,null,null,null,null,null,null,null,null,null,"DIECI","ONCE"]
[null,null,null,null,null,null,null,null,null,null,null,null,null,null,null,null,null,null,"VEINTI","DOCE"]
[null,null,null,null,null,null,null,null,null,null,null,null,null,null,null,null,null,null,"TREINTA","TRECE"]
[null,null,null,null,null,null,null,null,null,null,null,null,null,null,null,null,null,null,"CUARENTA","CATORCE"]
[null,null,null,null,null,null,null,null,null,null,null,null,null,null,null,null,null,null,"CINCUENTA","QUINCE"]
[null,null,null,null,null,null,null,null,null,null,null,null,null,null,null,null,null,null,"SESENTA","DIECISEIS"]
[null,null,null,null,null,null,null,null,null,null,null,null,null,null,null,null,null,null,"SETENTA","DIECISIETE"]
[null,null,null,null,null,null,null,null,null,null,null,null,null,{"$f":"RIGHT(N$10,6)","v":"420"},null,null,null,null,"OCHENTA","DIECIOCHO"]
[null,null,null,null,null,null,null,null,null,null,null,null,null,{"$f":"LEFT(N67,3)","v":"420"},null,null,null,null,"NOVENTA","DIECINUEVE"]
[null,null,null,null,null,null,null,null,null,null,null,null,null,5,null,null,null,null,"","VEINTE"]
[null,null,null,null,null,null,null,null,null,null,null,null,null,{"$f":"+N68+N69","v":425},null,null," ",null,null,"VEINTIUN"]
[null,null,null,null,null,null,null,null,null,null,null,null,null,null,{"$f":"IF(N10<100,10,LEFT(RIGHT(N$10,6),1))","v":"4"},{"$f":"IF(N70=105,\"CIEN\",IF(N74=5,\"\",CHOOSE(O71,Q71,Q72,Q73,Q74,Q75,Q76,Q77,Q78,Q79,Q80)))","v":"CUATROCIENTOS "},"CIENTO "]
[null,null,null,null,null,null,null,null,null,null,null,null,null,{"$f":"+O71","v":"4"},null,null,"DOSCIENTOS "]
[null,null,null,null,null,null,null,null,null,null,null,null,null,5,null,null,"TRECIENTOS "]
[null,null,null,null,null,null,null,null,null,null,null,null,null,{"$f":"+N73+N72","v":9},null,null,"CUATROCIENTOS "]
[null,null,null,null,null,null,null,null,null,null,null,null,null,null,null,null,"QUINIENTOS "]
[null,null,null,null,null,null,null,null,null,null,null,null,null,null,null,null,"SEISCIENTOS "]
[null,null,null,null,null,null,null,null,null,null,null,null,null,null,null,null,"SETECIENTOS "]
[null,null,null,null,null,null,null,null,null,null,null,null,null,null,null,null,"OCHOCIENTOS "]
[null,null,null,null,null,null,null,null,null,null,null,null,null,null,null,null,"NOVECIENTOS "]
[null,null,null,null,null,null,null,null,null,null,null,null,null,null,null,null," "]
[]
[]
[]
[null,null,null,null,null,null,null,null,null,null,null,null,null,{"$f":"RIGHT(N10,8)","v":"420"},{"$f":"+N84+1-1","v":420}]
[null,null,null,null,null,null,null,null,null,null,null,null,null,{"$f":"IF(AND(O84<10000000,O84>999999),LEFT(O84,1),LEFT(N84,2))","v":"42"},{"$f":"IF(+LEFT(RIGHT(N$85,2),2)<20,LEFT(RIGHT(N$85,2),2),RIGHT(N$85,2))","v":"42"},{"$f":"IF(Q87<=22,Q85,Q86)","v":"2"},{"$f":"RIGHT(N85,2)","v":"42"},null," Y UN","UN"]
[null,null,null,null,null,null,null,null,null,null,null,null,null,{"$f":"+O85","v":"42"},{"$f":"IF(+LEFT(RIGHT(N$10,8),2)<20,LEFT(RIGHT(N$86,2),2),LEFT(RIGHT(N$86,2),1))","v":"4"},{"$f":"+P85","v":"2"},{"$f":"RIGHT(N85,1)","v":"2"},null," Y DOS","DOS"]
[null,null,null,null,null,null,null,null,null,null,null,null,null,5,{"$f":"5+O86","v":9},5,{"$f":"1+Q85","v":43},null," Y TRES","TRES"]
[null,null,null,null,null,null,null,null,null,null,null,null,null,{"$f":"+N87+N86+O86","v":51},null,{"$f":"+P87+P86","v":7},{"$f":"IF(P85=\"00\",\"\",CHOOSE(P85,T85,T86,T87,T88,T89,T90,T91,T92,T93,T94,T95,T96,T97,T98,T99,T100,T101,T102,T103,T104,T105))","v":"DOS"},null," Y CUATRO","CUATRO"]
[null,null,null,null,null,null,null,null,null,null,null,null,null,null,null,null,{"$f":"IF(P88=5,\"\",CHOOSE(P85,S85,S86,S87,S88,S89,S90,S91,S92,S93,S94))","v":" Y DOS"},null," Y CINCO","CINCO"]
[null,null,null,null,null,null,null,null,null,null,null,null,null,null,null,null,{"$f":"IF(O86=\"0\",\"\",CHOOSE(O86,S95,S96,S97,S98,S99,S100,S101,S102,S103,S104))","v":"CUARENTA"},null," Y SEIS","SEIS"]
[null,null,null,null,null,null,null,null,null,null,null,null,null,null,null,null,null,null," Y SIETE","SIETE"]
[null,null,null,null,null,null,null,null,null,null,null,null,null,null,null,null,{"$f":"IF(Q87<=22,Q88,IF(Q87<=30,CONCATENATE(Q90,Q88),CONCATENATE(Q90,Q89)))","v":"CUARENTA Y DOS"},null," Y OCHO","OCHO"]
[null,null,null,null,null,null,null,null,null,null,null,null,null,null,null,null,{"$f":"+IF(AND(N10<2000000,N10>999999),\" \",\"ES \")","v":"ES "},null," Y NUEVE","NUEVE"]
[null,null,null,null,null,null,null,null,null,null,null,null,null,null,null,null,null,null,"","DIEZ"]
[null,null,null,null,null,null,null,null,null,null,null,null,null,null,null,null,null,null,"DIECI","ONCE"]
[null,null,null,null,null,null,null,null,null,null,null,null,null,null,null,null,null,null,"VEINTI","DOCE"]
[null,null,null,null,null,null,null,null,null,null,null,null,null,null,null,null,null,null,"TREINTA","TRECE"]
[null,null,null,null,null,null,null,null,null,null,null,null,null,null,null,null,null,null,"CUARENTA","CATORCE"]
[null,null,null,null,null,null,null,null,null,null,null,null,null,null,null,null,null,null,"CINCUENTA","QUINCE"]
[null,null,null,null,null,null,null,null,null,null,null,null,null,null,null,null,null,null,"SESENTA","DIECISEIS"]
[null,null,null,null,null,null,null,null,null,null,null,null,null,null,null,null,null,null,"SETENTA","DIECISIETE"]
[null,null,null,null,null,null,null,null,null,null,null,null,null,{"$f":"RIGHT(N$10,9)","v":"420"},null,null,null,null,"OCHENTA","DIECIOCHO"]
[null,null,null,null,null,null,null,null,null,null,null,null,null,{"$f":"LEFT(N102,3)","v":"420"},null,null,null,null,"NOVENTA","DIECINUEVE"]
[null,null,null,null,null,null,null,null,null,null,null,null,null,5,null,null,null,null,"","VEINTE"]
[null,null,null,null,null,null,null,null,null,null,null,null,null,{"$f":"+N103+N104","v":425},null,null," ",null,null,"VEINTIUN"]
[null,null,null,null,null,null,null,null,null,null,null,null,null,null,{"$f":"IF(N103<100,10,LEFT(RIGHT(N$10,9),1))","v":"4"},{"$f":"IF(N105=105,\"CIEN\",IF(N109=5,\"\",CHOOSE(O106,Q106,Q107,Q108,Q109,Q110,Q111,Q112,Q113,Q114,Q115)))","v":"CUATROCIENTOS "},"CIENTO "]
[null,null,null,null,null,null,null,null,null,null,null,null,null,{"$f":"+O106","v":"4"},null,null,"DOSCIENTOS "]
[null,null,null,null,null,null,null,null,null,null,null,null,null,5,null,null,"TRECIENTOS "]
[null,null,null,null,null,null,null,null,null,null,null,null,null,{"$f":"+N108+N107","v":9},null,null,"CUATROCIENTOS "]
[null,null,null,null,null,null,null,null,null,null,null,null,null,null,null,null,"QUINIENTOS "]
[null,null,null,null,null,null,null,null,null,null,null,null,null,null,null,null,"SEISCIENTOS "]
[null,null,null,null,null,null,null,null,null,null,null,null,null,null,null,null,"SETECIENTOS "]
[null,null,null,null,null,null,null,null,null,null,null,null,null,null,null,null,"OCHOCIENTOS "]
[null,null,null,null,null,null,null,null,null,null,null,null,null,null,null,null,"NOVECIENTOS "]
[]
[null,null,null,null,null,null,null,null,null,null,null,null,null,null,null,null,null,"OCHOCIENTOS "]
[null,null,null,null,null,null,null,null,null,null,null,null,null,null,null,null,null,"OCHOCIENTOS "]
[]
[]
[]
[]
[]
[]
[]
[]
[]
[]
[]
[]
[]
[]
[]
[]
[]
[]
[]
[]
[]
[]
[]
[null,null,null,null,null,null,null,null,null,null,null,null,null,12345678]
[null,null,null,null,null,null,null,null,null,null,null,null,null,{"$f":"RIGHT($P$141,2)","v":""}]
[null,null,null,null,null,null,null,null,null,null,null,null,null,{"$f":"LEFT(RIGHT($P$141,3),1)","v":""}]
[null,null,null,null,null,null,null,null,null,null,null,null,null,{"$f":"LEFT(RIGHT($P$141,5),2)","v":""}]
[null,null,null,null,null,null,null,null,null,null,null,null,null,{"$f":"LEFT(RIGHT($P$141,6),1)","v":""}]
[null,null,null,null,null,null,null,null,null,null,null,null,null,{"$f":"LEFT(RIGHT($P$141,8),2)","v":""}]

{"sheet":"REM","index":5,"n_rows":36,"n_cols":5,"rows_kept":36,"cut":false,"hidden":false,"merged":[[32,2,32,4],[1,0,1,4],[3,0,3,4],[31,0,31,1],[31,2,31,4]]}
["                                            ADMINISTRADORA EN REMODELACION COMERCIAL DE MEXICO"]
["PROYECTO DE OBRA"]
[null,null,null,"FECHA:  ______________________"]
["CLIENTE: ___________________________________________________________________________________________________________________________________________________  "]
["BREVE DESCRIPCION DE LA OBRA QUE SE HARA: "]
[]
[]
["MATERIAL","UNIDAD DE MEDIDA","CANTIDAD","P/UNITARIO","SUBTOTAL"]
[]
[]
[]
[]
[]
[]
[]
[]
[]
[]
[]
["TOTAL DE MATERIALES"]
[]
["MANO DE OBRA","UNIDAD DE MEDIDA","VOLUMEN A EJECUTAR","P/UNITARIO","SUBTOTAL"]
[]
[]
[]
[]
[]
[]
["TOTAL DE MANO DE OBRA"]
["TOTAL PRESUPUESTO"]
[]
["Declaro bajo protesta de decir verdad que los costos plasmados en este documento están basados en las cotizaciones realizadas por mi parte y son declarados de buena fe."]
[null,null,"Nombre y firma Cliente"]
[]
["*Unidades de medida posibles para obras: M2, ML, PZA, JGO, SAL, LOTE, etc."]
["**Unidades de medida posibles para material, dependiendo del tipo de material: gal, kg, ml, pza, bulto, lt, rollo, bote, cubeta, ton, m2"]

{"sheet":"CSF","index":6,"n_rows":67,"n_cols":6,"rows_kept":67,"cut":false,"hidden":false,"merged":[]}
["NOMBRE","MIGUEL ANGEL LARA GARCIA"]
["RFC","LAGM850627829"]
["CURP","LAGM850627HDFRRG03"]
["INIC OPERAC",2004]
["C.P.",2770]
["ENTIDAD","CDMX"]
["ESTATUS","ACTIVO"]
["REGIMEN","sys"]
["CORREO","angel.lara85@gmail.com "]
["TELEFONO",5643907370]
["FECHA",{"$f":"TODAY()","v":"2026-04-09"}]
["SOLICITUD DE:","XOL"]
[]
[]
["NUM","NOMBRE","RFC","CURP","FECHA","SOLICITUD DE:"]
[1,"EDGAR IVAN LASTRA ANTONIO","LAAE870912PU1",null,"2023-12-28","VALER"]
[{"$f":"+A14+1","v":1},"ADAN PALERMO GUZMAN","PAGA911017383",null,"2024-01-05","MAYTE"]
[{"$f":"+A17+1","v":2},"DAVID GUTIERREZ TEJEDA","GUTD921007QI9",null,"2024-01-05","MAYTE"]
[3,"IGNACIO CORONA MEJIA","COMI8607317N7",null,"2024-01-05","VALER"]
[4,"JOSE CRISTOBAL BOLAÑOS LOPEZ","BOLC750510A81",null,"2024-01-05","MAYTE"]
[5,"LUZ FERNANDA CURIEL MARTINEZ","CUML7805308B1",null,"2024-01-05","MAYTE"]
[6,"OMAR SANCHEZ VELOZ","SAVO9007115AA",null,"2024-01-05","MAYTE"]
[7,"SERGIO JUNIOR VAZQUEZ PEREZ","VAPS8605084G4",null,"2024-01-05","VALER"]
[8,"EMMANUEL CRUZ ELEUTERIO","CUEE920304EB6",null,"2024-01-10","VALER"]
[9,"VICTOR HUGO GONZALEZ MARTINEZ","GOMV9203169A4",null,"2024-01-10","VALER"]
[10,"LUIS ALBERTO DORADO ROJAS","DORL8806032F3",null,"2024-01-11","VALER"]
[11,"JORGE ALBERTO SILVA TREJO","SITJ790603T6A",null,"2024-01-12","MAYTE"]
[12,"OSCAR ISAI RESENDIZ GONZALEZ","REGO940803E63",null,"2024-02-07","MAYTE"]
[13,"EVARISTO GUEVARA HUERTA","GUHE680720HC3",null,"2024-02-09","MAYTE"]
[14,"MA DEL ROCIO MARTINEZ SANCHEZ","MASR700801S97",null,"2024-02-12","VALER"]
[15,"YOLANDA TELLEZ ARGUELLO","TEAY751020DE5",null,"2024-02-20","XOL"]
[16,"JAIRO JAVIER FABIAN RAMIREZ","FARJ920326FK6",null,"2024-03-04","XOL"]
[17,"ARTURO GIOVANI RANGEL LAREDO","RALA9207071D1","RALA920707HDFNRR00","2024-04-08","MANDO"]
[18,"ANWAR GARCIA VELAZQUEZ","GAVA8410265D2","GAVA841026HDFRLN00","2024-04-29","XOL"]
[19,"BEATRIZ GOMEZ LANDETA","GOLB730908IE7","GOLB730908MHGMNT05","2024-04-29","XOL"]
[20,"JUAN CARLOS CID LOPEZ","CILJ8604135A1","CILJ860413HMCDPN06","2024-05-08","XOL"]
[21,"BENJAMIN DAMIAN MIGUEL","DAMB961019VBA","DAMB961019HMCMGN07","2024-05-15","MANDO"]
[22,"JESUS RODRIGUEZ LARA","ROLJ791225N71","ROLJ791225HDFDRS05","2024-05-15","XOL"]
[23,"ONECIMA SANCHEZ ASCENCIO","SAAO730417FBA","SAAO730417MMCNSN07","2024-05-23","MANDO"]
[24,"LUIS AUGUSTO FLORES JUAREZ","FOJL830912JX8","FOJL830912HDFLRS07","2024-06-12","XOL"]
[25]
[26]
[27]
[28]
[29]
[30]
[31]
[32]
[33]
[{"$f":"+A49+1","v":34}]
[35]
[36]
[37]
[38]
[39]
[40]
[41]
[42]
[43]
[44]
[45]
[46]
[47]
[48]
[49]
[50]
[51]

{"sheet":"regCTES","index":7,"n_rows":2,"n_cols":6,"rows_kept":2,"cut":false,"hidden":false,"merged":[[0,1,0,5]]}
[null,"ADMINISTRADORA EN REMODELACION COMERCIAL DE MEXICO"]
["FECHA","NOMBRE","TELEFONO","N.S.S.","CUENTA INF","OBSERVACIONES"]